{"text_format":"1","workbook":"xlsx","n_sheets":11,"sheets":["INSTRUCCIONES","DATOS","IDENTIFICACION","EVALUACION","QUEST_A","QUEST_B","QUEST_C","PROGRAMA","BASE_A","BASE_B","BASE_C"],"not_rendered":{"charts":0,"images":2,"macros":1,"external_links":1,"defined_names":32,"comments":0,"pivot_tables":0},"unopened":[],"bounds":{"document_bytes":16777216,"sheet_cells":100000,"rows_first":2000,"rows_last":500,"rows_between":2000,"halvings":0,"cell_chars":16384,"cell_head_chars":4096},"cells_cut":0,"cells_raw":0,"read":"whole","date_system":"1900"}

{"sheet":"INSTRUCCIONES","index":0,"n_rows":26,"n_cols":3,"rows_kept":26,"cut":false,"hidden":false,"merged":[[22,1,23,1],[22,2,23,17],[25,1,26,1],[25,2,26,17],[9,1,11,17],[16,1,17,1],[19,1,20,1],[16,2,17,17],[19,2,20,17]]}
[]
[]
[]
[]
[]
[]
[]
[]
[]
[null,"La siguiente herramienta se ha diseñado para efectuar la identificación de los peligros, el análisis del cumplimiento de las medidas básicas y la planificación de las acciones necesarias para suprimir las brechas de control detectadas. Esta planilla debe ser aplicada considerando la realidad de los lugares donde realiza sus actividades como trabajador independiente.  "]
[]
[]
[]
[null,"PASOS A SEGUIR"]
[]
[]
[null,null,"Se debe indicar su nombre y la información básica de contacto. Debe acceder por medio del botón INFORMACIÓN INICIAL, ubicado en la parte superior de esta hoja."]
[]
[]
[null,null,"Completada la información inicial, debe identificar los peligros existentes en los lugares y/o actividades que realiza. Acceder por medio del botón IDENTIFICACIÓN, ubicado en la parte superior de la hoja."]
[]
[]
[null,null,"Ejecutada la identificación de los peligros, se debe realizar la evaluación del cumplimiento de los controles básicos relacionados. Acceder por medio del botón EVALUACIÓN, ubicado en la parte superior de la hoja."]
[]
[]
[null,null,"Realizada la evaluación de cumplimiento de los controles, debe generar su programa preventivo. Acceder por  medio del botón PROGRAMA PREVENTIVO, ubicado en la parte superior de la hoja."]

{"sheet":"DATOS","index":1,"n_rows":30,"n_cols":8,"rows_kept":30,"cut":false,"hidden":false,"merged":[[30,1,30,2],[30,4,30,5],[30,7,30,8],[27,7,27,8],[23,1,23,5],[27,1,27,2],[27,4,27,5],[26,4,26,5],[20,1,20,8],[17,7,17,8],[17,4,17,5],[11,1,11,13],[13,1,13,5],[17,1,17,2]]}
[]
[]
[]
[]
[]
[]
[]
[]
[null,{"$f":"+IF(COUNTA(B18,B21,E18,B28,E28,H28,E31,H31,B31)=9,\"Avanza\",\"No avanza\")","v":"No avanza"}]
[null,"INFORMACIÓN INICIAL"]
[]
[null,"A continuación debe indicar su nombre y la información básica de contacto."]
[]
[null,"INFORMACIÓN DEL TRABAJADOR INDEPENDIENTE"]
[]
[]
[null,"Nombre completo ",null,null,"RUT",null,null,"CIIU declarado en el SII"]
[]
[]
[null,"Descripción de las actividades desarrollas"]
[]
[]
[]
[null,"INFORMACIÓN DE CONTACTO"]
[]
[]
[null,"Dirección (avenida, calle, pasaje)",null,null,"Número dirección",null,null,"Comuna"]
[]
[]
[null,"Región",null,null,"E-mail",null,null,"Teléfono"]

{"sheet":"IDENTIFICACION","index":2,"n_rows":51,"n_cols":20,"rows_kept":51,"cut":false,"hidden":false,"merged":[[41,12,41,18],[42,12,42,18],[43,12,43,18],[40,2,40,8],[41,2,41,8],[42,2,42,8],[43,2,43,8],[30,12,30,18],[33,2,33,8],[31,12,31,18],[32,12,32,18],[40,12,40,18],[11,1,12,19],[37,1,38,19],[16,1,17,19],[27,1,28,19],[22,12,22,18],[19,2,19,8],[20,2,20,8],[21,2,21,8],[22,2,22,8],[19,12,19,18],[20,12,20,18],[21,12,21,18],[23,2,23,8],[30,2,30,8],[31,2,31,8],[32,2,32,8]]}
[]
[]
[]
[]
[]
[]
[null,null,null,null,null,null,null,null,null,null,null,null,null,null,null,null,null,null,null,"      SI"]
[]
[null,{"$f":"+IF(COUNTA(J20,J21,J22,J23,J24,T20,T21,T22,T23,J31,J32,J33,J34,T31,T32,T33,J41,J42,J43,J44,T41,T42,T43,T44)=24,\"Avanza\",\"No avanza\")","v":"No avanza"},{"$f":"+SUM(M39:M51)","v":10}]
[null,"IDENTIFICACIÓN DE PELIGROS"]
[]
[null,"A continuación se deben identificar los peligros existentes en los procesos y/o actividades realizadas. Para esto se utilizará el concepto de AGRUPACIÓN DE PELIGROS, el cual se define como aquellos factores de seguridad y salud en el trabajo (SST) que se generan a partir de una fuente, situación o acto común. Para aquellos peligros que existan en sus actividades deberás indicar un \"SI\" en la casilla respectiva."]
[]
[]
[null,"A.- Maquinarias, equipos / materiales de trabajo"]
[]
[null,"Corresponde a las agrupaciones en que la relación de los peligros está asociada principalmente a la fuente y su uso. En esta clasificación de encuentran los agentes materiales que son utilizados en sus actividades habituales o esporádicas."]
[]
[]
[null,"A.01","¿Utiliza máquinas portátiles, de forma permanente o esporádica, para tareas de corte, desbaste, pulido, ajuste, fijación, perforado, entre otros?",null,null,null,null,null,null,null,null,"A.06","¿Opera equipos de gran tamaño para tareas de movimiento de grandes volúmenes de materiales (Ej.: bulldozer, cargador frontal, etc.)?"]
[null,"A.02","¿Utiliza herramientas manuales, accionadas por la fuerza humana, para corte, sujeción, montaje, golpe de materiales, entre otros usos?",null,null,null,null,null,null,null,null,"A.07","En el desarrollo de sus actividades, ¿utiliza vehículos destinados al transporte de personas y/o cargas?"]
[null,"A.03","¿Realiza almacenamiento de materiales, productos o mercaderías en estanterías, atriles, rack, altillos, repisas o estructuras similares?",null,null,null,null,null,null,null,null,"A.08","¿Utiliza algún tipo de carro manual, como medio de ayuda mecánica, a fin de evitar el manejo o manipulación manual de carga (transpaleta manual/carros)?"]
[null,"A.04","¿Utiliza equipos que operen generando presión interna en un fluido o gas, como compresores, calderas, autoclaves, generadores de vapor o similares?",null,null,null,null,null,null,null,null,"A.09","¿Utiliza, almacena o transporta gases comprimidos para sus actividades (Ej.: argón, oxigeno, etc.)?"]
[null,"A.05","¿Utiliza equipos estacionarios para levantar o transportar materiales, equipos o similares (Ej.:  montacargas)?"]
[]
[null,"B.- Actividades de trabajo"]
[]
[null,"Se refiere a las agrupaciones en que la relación con los peligros está asociada principalmente a la tarea que realiza como trabajador independiente, considerando las condiciones más desfavorables y los agentes materiales más comunes."]
[]
[]
[null,"B.01","¿Realiza actividades laborales en recintos con aberturas limitadas para la entrada y salida de los trabajadores (Ej.: pozos, cubas, fosas o similares)? ",null,null,null,null,null,null,null,null,"B.05","¿Realiza actividades de soldadura por proceso de arco manual, sistema MIG, sistema arco sumergido, sistema TIG u otro similar?"]
[null,"B.02","¿Realiza actividades en plataformas de trabajo o en cercanía de espacios libres/angulados, que estén a una altura superior o igual a 1,8 metros?",null,null,null,null,null,null,null,null,"B.06","¿Realiza actividades donde deba manipular cargas o materiales de mas de 3 kilos?"]
[null,"B.03","¿En sus actividades se realiza, de forma permanente o esporádica, trabajos eléctricos?",null,null,null,null,null,null,null,null,"B.07","¿Realiza actividades donde se exponga a agentes químicos (polvo en suspensión, solventes, gases, vapores, etc.)?"]
[null,"B.04","¿Realiza actividades administrativas, desarrolladas al interior de oficinas u otras instalaciones que cumplan ese fin?"]
[]
[null,"C.- Condiciones básicas del centro de trabajo"]
[]
[null,"Se refiere a las agrupaciones relacionadas a las condiciones mínimas de seguridad que deben cumplir los lugares donde realiza su trabajo, con el objetivo de controlar los peligros inherentes de esas instalaciones."]
[]
[]
[null,"C.01","¿Para efectuar sus actividades requiere de un lugar que posea Instalación eléctrica y/o de gas?",null,null,null,null,null,null,null,null,"C.05","¿En el lugar donde realiza sus actividades se pueden generar emergencias, que requieran el uso de Vías de evacuación?"]
[null,"C.02","¿En el lugar donde realiza sus actividades se pueden generar incendios y/o explosiones?",null,null,null,null,null,null,null,null,"C.06","¿Para efectuar sus actividades requiere de sistema de iluminación (natural y/o artificial)?"]
[null,"C.03","¿Debe transitar por superficies de trabajo para efectuar sus actividades?",null,null,null,null,null,null,null,null,"C.07","¿Para efectuar sus actividades requiere de mantener señalización de las área peligrosas?"]
[null,"C.04","¿Debe utilizar Escaleras y/o transitar por rampas - andenes para efectuar sus actividades?",null,null,null,null,null,null,null,null,"C.08","¿Para efectuar sus actividades debe mantener condiciones de orden y aseo en el lugar de trabajo?"]
[]
[]
[]
[]
[null,null,null,null,null,null,null,null,null,null,null,null,5,null,null,null,null,null,null,5]
[]
[null,null,null,null,null,null,null,null,null,null,null,null,5,null,null,null,null,null,null,5]

{"sheet":"EVALUACION","index":3,"n_rows":38,"n_cols":25,"rows_kept":38,"cut":false,"hidden":false,"merged":[[33,1,33,5],[33,9,33,13],[34,1,34,5],[35,1,35,5],[36,1,36,5],[37,1,37,5],[34,9,34,13],[35,9,35,13],[36,9,36,13],[37,9,37,13],[29,1,29,5],[26,1,26,5],[26,9,26,13],[27,1,27,5],[27,9,27,13],[25,1,25,5],[25,9,25,13],[20,9,20,13],[28,1,28,5],[28,9,28,13],[20,1,20,5],[21,1,21,5],[19,9,19,13],[17,1,17,5],[18,1,18,5],[19,1,19,5],[11,1,12,19],[16,9,16,13],[16,1,16,5],[17,9,17,13],[18,9,18,13]]}
[]
[]
[]
[]
[]
[]
[null,null,null,null,null,null,null,null,null,null,null,null,null,null,null,null,null,null,null,null,null,null,null,"A.07",{"$f":"+IF(O19=\"Finalizado\",1,IF(O19=\"No aplica\",1,0))","v":0}]
[null,null,null,null,null,null,null,null,null,null,null,null,null,null,null,null,null,null,null,null,null,null,null,"A.08",{"$f":"+IF(O20=\"Finalizado\",1,IF(O20=\"No aplica\",1,0))","v":0}]
[null,{"$f":"IDENTIFICACION!$B$11","v":0},null,null,null,null,null,null,null,null,null,null,null,null,null,null,null,null,null,null,null,null,null,"A.09",{"$f":"+IF(O21=\"Finalizado\",1,IF(O21=\"No aplica\",1,0))","v":0}]
[null,"EVALUACIÓN DE CONTROLES BÁSICOS",null,null,null,null,null,null,null,null,null,null,null,null,null,null,null,null,null,null,null,null,null,"B.01",{"$f":"+IF(G27=\"Finalizado\",1,IF(G27=\"No aplica\",1,0))","v":{"$error":"#REF!"}}]
[null,null,null,null,null,null,null,null,null,null,null,null,null,null,null,null,null,null,null,null,null,null,null,"B.02",{"$f":"+IF(G28=\"Finalizado\",1,IF(G28=\"No aplica\",1,0))","v":{"$error":"#REF!"}}]
[null,"Por cada agrupación de peligro identificada, se debe realizar la evaluación de los controles básicos a través de los cuestionarios que se encuentran en el botón EVALUAR. En los siguientes cuadros se muestran los resultados de la evaluación de cada agrupación de peligro, indicando el ESTADO de los cuestionarios y el PORCENTAJE (%) de cumplimiento.",null,null,null,null,null,null,null,null,null,null,null,null,null,null,null,null,null,null,null,null,null,"B.03",{"$f":"+IF(G29=\"Finalizado\",1,IF(G29=\"No aplica\",1,0))","v":{"$error":"#REF!"}}]
[null,null,null,null,null,null,null,null,null,null,null,null,null,null,null,null,null,null,null,null,null,null,null,"B.04",{"$f":"+IF(G30=\"Finalizado\",1,IF(G30=\"No aplica\",1,0))","v":{"$error":"#REF!"}}]
[null,null,null,null,null,null,null,null,null,null,null,null,null,null,null,null,null,null,null,null,null,null,null,"B.05",{"$f":"+IF(O27=\"Finalizado\",1,IF(O27=\"No aplica\",1,0))","v":{"$error":"#REF!"}}]
[null,"A.- Maquinarias, equipos / materiales de trabajo",null,null,null,null,null,null,null,null,null,null,null,null,null,null,null,null,null,null,null,null,null,"B.06",{"$f":"+IF(O28=\"Finalizado\",1,IF(O28=\"No aplica\",1,0))","v":0}]
[null,null,null,null,null,null,null,null,null,null,null,null,null,null,null,null,null,null,null,null,null,null,null,"B.07",{"$f":"+IF(O29=\"Finalizado\",1,IF(O29=\"No aplica\",1,0))","v":0}]
[null,"AGRUPACIÓN DE PELIGRO",null,null,null,null,"ESTADO","% ",null,"AGRUPACIÓN DE PELIGRO",null,null,null,null,"ESTADO","%",null,null,null,null,null,null,null,"C.01",{"$f":"+IF(G35=\"Finalizado\",1,IF(G35=\"No aplica\",1,0))","v":{"$error":"#REF!"}}]
[null,"A.01 - Máquinas portátiles",null,null,null,null,{"$f":"+IF(I18=\"NO\",\"No aplica\",IF(COUNTA(A.01)=QUEST_A!$Q2,\"Finalizado\",\"Pendiente\"))","v":"Finalizado"},{"$f":"+IF(I18=\"NO\",\"- - -\",+COUNTIF(A.01,\"SI\")/(+COUNTIF(QUEST_A!$B$15:$B$42,QUEST_A!P2)-+COUNTIF(A.01,\"NO APLICA\")))","v":{"$error":"#DIV/0!"}},{"$f":"+IDENTIFICACION!J20","v":0},"A.06 - Conducción y uso de maquinaria pesada",null,null,null,null,{"$f":"+IF(Q18=\"NO\",\"No aplica\",IF(COUNTA(A.06)=QUEST_A!$Q7,\"Finalizado\",\"Pendiente\"))","v":"Pendiente"},{"$f":"+IF(Q18=\"NO\",\"- - -\",+COUNTIF(A.06,\"SI\")/(+COUNTIF(QUEST_A!$B$15:$B$42,QUEST_A!P7)-+COUNTIF(A.06,\"NO APLICA\")))","v":0},{"$f":"+IDENTIFICACION!T20","v":0},null,null,null,null,null,null,"C.02",{"$f":"+IF(G36=\"Finalizado\",1,IF(G36=\"No aplica\",1,0))","v":{"$error":"#REF!"}}]
[null,"A.02 - Herramientas manuales",null,null,null,null,{"$f":"+IF(I19=\"NO\",\"No aplica\",IF(COUNTA(A.02)=QUEST_A!$Q3,\"Finalizado\",\"Pendiente\"))","v":"Finalizado"},{"$f":"+IF(I19=\"NO\",\"- - -\",+COUNTIF(A.01,\"SI\")/(+COUNTIF(QUEST_A!$B$15:$B$42,QUEST_A!P3)-+COUNTIF(A.01,\"NO APLICA\")))","v":{"$error":"#DIV/0!"}},{"$f":"+IDENTIFICACION!J21","v":0},"A.07 - Conducción y uso de vehículos",null,null,null,null,{"$f":"+IF(Q19=\"NO\",\"No aplica\",IF(COUNTA(A.07)=QUEST_A!$Q8,\"Finalizado\",\"Pendiente\"))","v":"Pendiente"},{"$f":"+IF(Q19=\"NO\",\"- - -\",+COUNTIF(A.07,\"SI\")/(+COUNTIF(QUEST_A!$B$15:$B$42,QUEST_A!P8)-+COUNTIF(A.07,\"NO APLICA\")))","v":0},{"$f":"+IDENTIFICACION!T21","v":0},null,null,null,null,null,null,"C.03",{"$f":"+IF(G37=\"Finalizado\",1,IF(G37=\"No aplica\",1,0))","v":{"$error":"#REF!"}}]
[null,"A.03 - Almacenamiento de materiales",null,null,null,null,{"$f":"+IF(I20=\"NO\",\"No aplica\",IF(COUNTA(A.01)=QUEST_A!$Q4,\"Finalizado\",\"Pendiente\"))","v":"Finalizado"},{"$f":"+IF(I20=\"NO\",\"- - -\",+COUNTIF(A.01,\"SI\")/(+COUNTIF(QUEST_A!$B$15:$B$42,QUEST_A!P4)-+COUNTIF(A.01,\"NO APLICA\")))","v":{"$error":"#DIV/0!"}},{"$f":"+IDENTIFICACION!J22","v":0},"A.08 - Transpaleta manual / carros",null,null,null,null,{"$f":"+IF(Q20=\"NO\",\"No aplica\",IF(COUNTA(A.08)=QUEST_A!$Q9,\"Finalizado\",\"Pendiente\"))","v":"Pendiente"},{"$f":"+IF(Q20=\"NO\",\"- - -\",+COUNTIF(A.08,\"SI\")/(+COUNTIF(QUEST_A!$B$15:$B$42,QUEST_A!P9)-+COUNTIF(A.08,\"NO APLICA\")))","v":0},{"$f":"+IDENTIFICACION!T22","v":0},null,null,null,null,null,null,"C.04",{"$f":"+IF(G38=\"Finalizado\",1,IF(G38=\"No aplica\",1,0))","v":{"$error":"#REF!"}}]
[null,"A.04 - Aparatos a presión",null,null,null,null,{"$f":"+IF(I21=\"NO\",\"No aplica\",IF(COUNTA(A.01)=QUEST_A!$Q5,\"Finalizado\",\"Pendiente\"))","v":"Finalizado"},{"$f":"+IF(I21=\"NO\",\"- - -\",+COUNTIF(A.01,\"SI\")/(+COUNTIF(QUEST_A!$B$15:$B$42,QUEST_A!P5)-+COUNTIF(A.01,\"NO APLICA\")))","v":{"$error":"#DIV/0!"}},{"$f":"+IDENTIFICACION!J23","v":0},"A.09 - Almacenamiento de gases (argón, oxigeno, etc.)",null,null,null,null,{"$f":"+IF(Q21=\"NO\",\"No aplica\",IF(COUNTA(A.09)=QUEST_A!$Q10,\"Finalizado\",\"Pendiente\"))","v":"Pendiente"},{"$f":"+IF(Q21=\"NO\",\"- - -\",+COUNTIF(A.09,\"SI\")/(+COUNTIF(QUEST_A!$B$15:$B$42,QUEST_A!P10)-+COUNTIF(A.09,\"NO APLICA\")))","v":0},{"$f":"+IDENTIFICACION!T23","v":0},null,null,null,null,null,null,"C.05",{"$f":"+IF(O35=\"Finalizado\",1,IF(O35=\"No aplica\",1,0))","v":{"$error":"#REF!"}}]
[null,"A.05 - Equipos de elevación (cargas)",null,null,null,null,{"$f":"+IF(I22=\"NO\",\"No aplica\",IF(COUNTA(A.01)=QUEST_A!$Q6,\"Finalizado\",\"Pendiente\"))","v":"Finalizado"},{"$f":"+IF(I22=\"NO\",\"- - -\",+COUNTIF(A.01,\"SI\")/(+COUNTIF(QUEST_A!$B$15:$B$42,QUEST_A!P6)-+COUNTIF(A.01,\"NO APLICA\")))","v":{"$error":"#DIV/0!"}},{"$f":"+IDENTIFICACION!J24","v":0},null,null,null,null,null,null,null,null,null,null,null,null,null,null,"C.06",{"$f":"+IF(O36=\"Finalizado\",1,IF(O36=\"No aplica\",1,0))","v":0}]
[null,null,null,null,null,null,null,null,null,null,null,null,null,null,null,null,null,null,null,null,null,null,null,"C.07",{"$f":"+IF(O37=\"Finalizado\",1,IF(O37=\"No aplica\",1,0))","v":0}]
[null,"B.- Actividades de trabajo",null,null,null,null,null,null,null,null,null,null,null,null,null,null,null,null,null,null,null,null,null,"C.08",{"$f":"+IF(O38=\"Finalizado\",1,IF(O38=\"No aplica\",1,0))","v":0}]
[]
[null,"AGRUPACIÓN DE PELIGRO",null,null,null,null,"ESTADO","%",null,"AGRUPACIÓN DE PELIGRO",null,null,null,null,"ESTADO","%"]
[null,"B.01 - Trabajo en espacio confinado",null,null,null,null,{"$f":"+IF(I27=\"NO\",\"No aplica\",IF(COUNTA(B.01)=QUEST_B!#REF!,\"Finalizado\",\"Pendiente\"))","v":{"$error":"#REF!"}},{"$f":"+IF(I27=\"NO\",\"- - -\",+COUNTIF(B.01,\"SI\")/(+COUNTIF(QUEST_B!$B$15:$B$63,QUEST_B!#REF!)-+COUNTIF(B.01,\"NO APLICA\")))","v":{"$error":"#DIV/0!"}},{"$f":"+IDENTIFICACION!J31","v":0},"B.05 - Trabajo con soldadura",null,null,null,null,{"$f":"+IF(Q27=\"NO\",\"No aplica\",IF(COUNTA(B.05)=QUEST_B!#REF!,\"Finalizado\",\"Pendiente\"))","v":{"$error":"#REF!"}},{"$f":"+IF(Q27=\"NO\",\"- - -\",+COUNTIF(B.05,\"SI\")/(+COUNTIF(QUEST_B!$B$15:$B$63,QUEST_B!#REF!)-+COUNTIF(B.05,\"NO APLICA\")))","v":{"$error":"#DIV/0!"}},{"$f":"+IDENTIFICACION!T31","v":0}]
[null,"B.02 - Trabajo en altura >= 1,8 metros",null,null,null,null,{"$f":"+IF(I28=\"NO\",\"No aplica\",IF(COUNTA(B.02)=QUEST_B!#REF!,\"Finalizado\",\"Pendiente\"))","v":{"$error":"#REF!"}},{"$f":"+IF(I28=\"NO\",\"- - -\",+COUNTIF(B.02,\"SI\")/(+COUNTIF(QUEST_B!$B$15:$B$63,QUEST_B!#REF!)-+COUNTIF(B.02,\"NO APLICA\")))","v":{"$error":"#DIV/0!"}},{"$f":"+IDENTIFICACION!J32","v":0},"B.06 - Trabajo en manejo manual de cargas (MMC)",null,null,null,null,{"$f":"+IF(Q28=\"NO\",\"No aplica\",IF(COUNTA(B.06)=QUEST_B!$Q7,\"Finalizado\",\"Pendiente\"))","v":"Pendiente"},{"$f":"+IF(Q28=\"NO\",\"- - -\",+COUNTIF(B.06,\"SI\")/(+COUNTIF(QUEST_B!$B$15:$B$63,QUEST_B!P7)-+COUNTIF(B.06,\"NO APLICA\")))","v":0},{"$f":"+IDENTIFICACION!T32","v":0}]
[null,"B.03 - Trabajo con electricidad",null,null,null,null,{"$f":"+IF(I29=\"NO\",\"No aplica\",IF(COUNTA(B.03)=QUEST_B!#REF!,\"Finalizado\",\"Pendiente\"))","v":{"$error":"#REF!"}},{"$f":"+IF(I29=\"NO\",\"- - -\",+COUNTIF(B.03,\"SI\")/(+COUNTIF(QUEST_B!$B$15:$B$63,QUEST_B!#REF!)-+COUNTIF(B.03,\"NO APLICA\")))","v":{"$error":"#DIV/0!"}},{"$f":"+IDENTIFICACION!J33","v":0},"B.07 - Trabajo con exposición agentes químicos",null,null,null,null,{"$f":"+IF(Q29=\"NO\",\"No aplica\",IF(COUNTA(B.07)=QUEST_B!$Q8,\"Finalizado\",\"Pendiente\"))","v":"Pendiente"},{"$f":"+IF(Q29=\"NO\",\"- - -\",+COUNTIF(B.07,\"SI\")/(+COUNTIF(QUEST_B!$B$15:$B$63,QUEST_B!P8)-+COUNTIF(B.07,\"NO APLICA\")))","v":0},{"$f":"+IDENTIFICACION!T33","v":0}]
[null,"B.04 - Trabajo administrativo en oficina",null,null,null,null,{"$f":"+IF(I30=\"NO\",\"No aplica\",IF(COUNTA(B.04)=QUEST_B!#REF!,\"Finalizado\",\"Pendiente\"))","v":{"$error":"#REF!"}},{"$f":"+IF(I30=\"NO\",\"- - -\",+COUNTIF(B.04,\"SI\")/(+COUNTIF(QUEST_B!$B$15:$B$63,QUEST_B!#REF!)-+COUNTIF(B.04,\"NO APLICA\")))","v":{"$error":"#DIV/0!"}},{"$f":"+IDENTIFICACION!J34","v":0}]
[]
[null,"C.- Condiciones básicas del centro de trabajo"]
[]
[null,"AGRUPACIÓN DE PELIGRO",null,null,null,null,"ESTADO","%",null,"AGRUPACIÓN DE PELIGRO",null,null,null,null,"ESTADO","%"]
[null,"C.01 - Instalación eléctrica y de gas",null,null,null,null,{"$f":"+IF(I35=\"NO\",\"No aplica\",IF(COUNTA(C.01)=QUEST_C!#REF!,\"Finalizado\",\"Pendiente\"))","v":{"$error":"#REF!"}},{"$f":"+IF(I35=\"NO\",\"- - -\",+COUNTIF(C.01,\"SI\")/(+COUNTIF(QUEST_C!$B$15:$B$96,QUEST_C!#REF!)-+COUNTIF(C.01,\"NO APLICA\")))","v":{"$error":"#DIV/0!"}},{"$f":"+IDENTIFICACION!J41","v":0},"C.05 - Vías de evacuación",null,null,null,null,{"$f":"+IF(Q35=\"NO\",\"No aplica\",IF(COUNTA(C.05)=QUEST_C!#REF!,\"Finalizado\",\"Pendiente\"))","v":{"$error":"#REF!"}},{"$f":"+IF(Q35=\"NO\",\"- - -\",+COUNTIF(C.05,\"SI\")/(+COUNTIF(QUEST_C!$B$15:$B$96,QUEST_C!#REF!)-+COUNTIF(C.05,\"NO APLICA\")))","v":{"$error":"#DIV/0!"}},{"$f":"+IDENTIFICACION!T41","v":0}]
[null,"C.02 - Incendio y explosión",null,null,null,null,{"$f":"+IF(I36=\"NO\",\"No aplica\",IF(COUNTA(C.02)=QUEST_C!#REF!,\"Finalizado\",\"Pendiente\"))","v":{"$error":"#REF!"}},{"$f":"+IF(I36=\"NO\",\"- - -\",+COUNTIF(C.02,\"SI\")/(+COUNTIF(QUEST_C!$B$15:$B$96,QUEST_C!#REF!)-+COUNTIF(C.02,\"NO APLICA\")))","v":{"$error":"#DIV/0!"}},{"$f":"+IDENTIFICACION!J42","v":0},"C.06 - Iluminación",null,null,null,null,{"$f":"+IF(Q36=\"NO\",\"No aplica\",IF(COUNTA(C.06)=QUEST_C!$Q7,\"Finalizado\",\"Pendiente\"))","v":"Pendiente"},{"$f":"+IF(Q36=\"NO\",\"- - -\",+COUNTIF(C.06,\"SI\")/(+COUNTIF(QUEST_C!$B$15:$B$96,QUEST_C!P7)-+COUNTIF(C.06,\"NO APLICA\")))","v":0},{"$f":"+IDENTIFICACION!T42","v":0}]
[null,"C.03 - Espacios y superficies de trabajo",null,null,null,null,{"$f":"+IF(I37=\"NO\",\"No aplica\",IF(COUNTA(C.03)=QUEST_C!#REF!,\"Finalizado\",\"Pendiente\"))","v":{"$error":"#REF!"}},{"$f":"+IF(I37=\"NO\",\"- - -\",+COUNTIF(C.03,\"SI\")/(+COUNTIF(QUEST_C!$B$15:$B$96,QUEST_C!#REF!)-+COUNTIF(C.03,\"NO APLICA\")))","v":{"$error":"#DIV/0!"}},{"$f":"+IDENTIFICACION!J43","v":0},"C.07 - Señalización",null,null,null,null,{"$f":"+IF(Q37=\"NO\",\"No aplica\",IF(COUNTA(C.07)=QUEST_C!$Q8,\"Finalizado\",\"Pendiente\"))","v":"Pendiente"},{"$f":"+IF(Q37=\"NO\",\"- - -\",+COUNTIF(C.07,\"SI\")/(+COUNTIF(QUEST_C!$B$15:$B$96,QUEST_C!P8)-+COUNTIF(C.07,\"NO APLICA\")))","v":0},{"$f":"+IDENTIFICACION!T43","v":0}]
[null,"C.04 - Escaleras, rampas y andenes",null,null,null,null,{"$f":"+IF(I38=\"NO\",\"No aplica\",IF(COUNTA(C.04)=QUEST_C!#REF!,\"Finalizado\",\"Pendiente\"))","v":{"$error":"#REF!"}},{"$f":"+IF(I38=\"NO\",\"- - -\",+COUNTIF(C.04,\"SI\")/(+COUNTIF(QUEST_C!$B$15:$B$96,QUEST_C!#REF!)-+COUNTIF(C.04,\"NO APLICA\")))","v":{"$error":"#DIV/0!"}},{"$f":"+IDENTIFICACION!J44","v":0},"C.08 - Condiciones de orden y aseo",null,null,null,null,{"$f":"+IF(Q38=\"NO\",\"No aplica\",IF(COUNTA(C.08)=QUEST_C!$Q9,\"Finalizado\",\"Pendiente\"))","v":"Pendiente"},{"$f":"+IF(Q38=\"NO\",\"- - -\",+COUNTIF(C.08,\"SI\")/(+COUNTIF(QUEST_C!$B$15:$B$96,QUEST_C!P9)-+COUNTIF(C.08,\"NO APLICA\")))","v":0},{"$f":"+IDENTIFICACION!T44","v":0}]

{"sheet":"QUEST_A","index":4,"n_rows":42,"n_cols":20,"rows_kept":42,"cut":false,"hidden":false,"merged":[[11,1,12,10]]}
[]
[]
[]
[]
[]
[]
[null,null,null,null,null,null,null,null,null,null,null,null,null,null,null,"A.06",{"$f":"+COUNTIF($B$15:$B$42,P7)","v":2},{"$f":"+COUNTIF(A.06,\"SI\")","v":0},{"$f":"+COUNTIF(A.06,\"NO\")","v":0},{"$f":"+COUNTIF(A.06,\"NO APLICA\")","v":0}]
[null,null,null,null,null,null,null,null,null,null,null,null,null,null,null,"A.07",{"$f":"+COUNTIF($B$15:$B$42,P8)","v":2},{"$f":"+COUNTIF(A.07,\"SI\")","v":0},{"$f":"+COUNTIF(A.07,\"NO\")","v":0},{"$f":"+COUNTIF(A.07,\"NO APLICA\")","v":0}]
[null,{"$f":"IDENTIFICACION!$B$11","v":0},null,null,null,null,null,null,null,null,null,null,null,null,null,"A.08",{"$f":"+COUNTIF($B$15:$B$42,P9)","v":2},{"$f":"+COUNTIF(A.08,\"SI\")","v":0},{"$f":"+COUNTIF(A.08,\"NO\")","v":0},{"$f":"+COUNTIF(A.08,\"NO APLICA\")","v":0}]
[null,"A.- MAQUINARIAS, EQUIPOS / MATERIALES DE TRABAJO",null,null,null,null,null,null,null,null,null,null,null,null,null,"A.09",{"$f":"+COUNTIF($B$15:$B$42,P10)","v":4},{"$f":"+COUNTIF(A.09,\"SI\")","v":0},{"$f":"+COUNTIF(A.09,\"NO\")","v":0},{"$f":"+COUNTIF(A.09,\"NO APLICA\")","v":0}]
[]
[null,"A continuación se indican las medidas de control relacionadas con la temática \"Maquinarias, equipos / materiales de trabajo\". En la columna respuesta debe indicar si se cumple la medida o si esta no aplica a la realidad del centro de trabajo. Por cada pregunta con respuesta negativa se generará una medida en el programa preventivo. "]
[]
[]
[null,"CÓDIGO\nAP","NÚMERO PREGUNTA","AGRUPACIÓN DE PELIGROS","NORMATIVA UTILIZADA","DESCRIPCIÓN PREGUNTA DE EVALUACIÓN","RESPUESTA"]
["A.01_1","A.01",1,"Máquinas portátiles","Decreto Supremo N°  44, Nuevo reglamento sobre PRP","La herramienta portátil que usted utiliza, ¿cuenta con sistema de seguridad hombre muerto o gatillo de seguridad con asa de protección para evitar activaciones involuntarias?"]
["A.01_2","A.01",2,"Máquinas portátiles"," Decreto Supremo N° 594, Condiciones básicas en los CT","¿Utiliza los elementos de protección personal (EPP) acordes con las características que exige el riesgo a cubrir al operar con máquinas portátiles?"]
["A.01_3","A.01",3,"Máquinas portátiles","Decreto Supremo N°  44, Nuevo reglamento sobre PRP","¿Se asegura de conectar la herramienta portátil en circuitos eléctricos que se encuentren protegidos con interruptores automáticos, protectores diferenciales y que el sistema de puesta a tierra funciona correctamente?"]
["A.01_4","A.01",4,"Máquinas portátiles","Decreto Supremo N°  44, Nuevo reglamento sobre PRP","¿Se asegura de que el enchufe de la herramienta portátil que usted utiliza sea adecuado al toma corriente de la instalación ?"]
["A.02_1","A.02",1,"Herramientas manuales"," Decreto Supremo N° 594, Condiciones básicas en los CT","¿Cumple con implementar un plan de mantenimiento de las herramientas manuales dispuestas para sus trabajos, descartando aquellas herramientas que se encuentran defectuosas?"]
["A.02_2","A.02",2,"Herramientas manuales","Artículo  184, Código del Trabajo","¿Cumple con transportar y almacenar las herramientas, asegurando su buen estado de conservación, utilizando cajas o bolsas resistentes de acuerdo a las indicaciones del fabricante, asegurándose de evitar la exposición de componentes con filos o puntas?"]
["A.03_1","A.03",1,"Almacenamiento de materiales","D.S. 594, Condiciones básicas en los CT","¿Cumple con establecer lugares específicos para almacenar o acopiar materiales, estableciendo límites del área de almacenamiento de acuerdo a las categorías de los materiales?"]
["A.03_2","A.03",2,"Almacenamiento de materiales","D.S. 594, Condiciones básicas en los CT","¿Cumple con mantener empotradas o ancladas las estanterías o estructuras dispuestas para el almacenamiento de materiales, considerando las condiciones de máxima carga y la estabilidad de estos?"]
["A.03_3","A.03",3,"Almacenamiento de materiales","D.S. 594, Condiciones básicas en los CT","¿Cumple con disponer de escalas de mano, pisos o taburetes para acceder a las zonas elevadas de las estanterías, los que poseen elementos antideslizantes en sus puntos de apoyo?"]
["A.04_1","A.04",1,"Aparatos a presión","Decreto 10, reglamento de calderas","¿Ha ejecutado mantención preventiva para el aparato a presión?"]
["A.04_2","A.04",2,"Aparatos a presión","Decreto 10, reglamento de calderas","¿Conoce las especificaciones del uso seguro del aparato a presión, las prohibiciones, medidas preventivas y cómo debe actuar ante una situación de emergencia?"]
["A.04_3","A.04",3,"Aparatos a presión","Decreto 10, reglamento de calderas","Cuando está utilizando el aparato a presión, ¿se asegura de que no se ejecuten otras actividades a su alrededor, no relacionadas con la tarea?"]
["A.04_4","A.04",4,"Aparatos a presión","Decreto 10, reglamento de calderas","Cuando utiliza aparatos a presión, ¿se asegura de prohibir el ingreso de toda persona ajena o no autorizada por usted?"]
["A.04_5","A.04",5,"Aparatos a presión","Decreto 10, reglamento de calderas","En el área cercana en donde opera el aparato a presión, ¿procura no almacenar productos, materias primas u otros elementos?"]
["A.04_6","A.04",6,"Aparatos a presión","Decreto 10, reglamento de calderas","¿Se asegura de proteger aquellas partes del aparato a presión que se encuentran a elevadas temperaturas en las que podría entrar en contacto directo con usted?"]
["A.05_1","A.05",1,"Equipos de elevación (cargas)","Ley 20.296, reglamento de elevedores y otros","¿Existe un programa de mantención periódica de los elementos que componen los equipos elevación de cargas (anclajes, ganchos, cuerdas, cadenas, eslingas, otros) y existe un registro documentado de esta actividad?"]
["A.05_2","A.05",2,"Equipos de elevación (cargas)","Ley 20.296, reglamento de elevedores y otros","¿Los equipos de elevación poseen un dispositivo de parada de emergencia, claramente señalizado y accesible?"]
["A.06_1","A.06",1,"Conducción y uso de maquinaria pesada","Articulo 184, Código del Trabajo","¿Se cuenta con un plan de mantenimiento preventivo de la maquinaria?"]
["A.06_2","A.06",2,"Conducción y uso de maquinaria pesada","Articulo 184, Código del Trabajo","¿Utiliza elementos de protección personal durante la operación, ascensos y descensos de cabina?"]
["A.07_1","A.07",1,"Conducción y uso de vehículos","Decreto Fuerza de Ley N° 1. Ley de tránsito","¿Se ha implementado, ejecutado y controlado un programa de mantenimiento para los vehículos utilizados?"]
["A.07_2","A.07",2,"Conducción y uso de vehículos","Decreto Fuerza de Ley N° 1. Ley de tránsito","¿Se ha implementado un sistema de control que permita asegurar la existencia y vigencia de la documentación de los vehículos y el conductor?"]
["A.08_1","A.08",1,"Transpaleta manual / carros","Artículo 184, Código del Trabajo","¿Se encuentra señalizada la capacidad máxima de los carros manuales de carga que utiliza?"]
["A.08_2","A.08",2,"Transpaleta manual / carros","Artículo 184, Código del Trabajo","¿Tiene conocimiento del manual de uso proporcionado por el fabricante de la transpaleta y/o carros manual que usted utiliza?"]
["A.09_1","A.09",1,"Almacenamiento de gases (argón, oxigeno, etc.)","D.S. 594, Condiciones básicas en los CT","¿El cuerpo de todos los cilindros se encuentra en buen estado, es decir; sin cortes, hendiduras, abolladuras, corrosión o señales de arco eléctrico?"]
["A.09_2","A.09",2,"Almacenamiento de gases (argón, oxigeno, etc.)","D.S. 594, Condiciones básicas en los CT","¿Se dispone de cubierta protectora, ya sea gorro o caperuza para todos los cilindros de gas almacenados, incluso los vacíos?"]
["A.09_3","A.09",3,"Almacenamiento de gases (argón, oxigeno, etc.)","D.S. 594, Condiciones básicas en los CT","¿Todos los cilindros de gas son almacenados en posición vertical y posee un sistema para encadenarlos individual a una pared o baranda que resista el peso?"]
["A.09_4","A.09",4,"Almacenamiento de gases (argón, oxigeno, etc.)","D.S. 594, Condiciones básicas en los CT","El área de almacenamiento de los cilindros de gas, ¿es un lugar fresco, protegido de la humedad y del sol?"]

{"sheet":"QUEST_B","index":5,"n_rows":35,"n_cols":20,"rows_kept":35,"cut":false,"hidden":false,"merged":[[11,1,12,10]]}
[]
[]
[]
[]
[]
[]
[null,null,null,null,null,null,null,null,null,null,null,null,null,null,null,"B.06",{"$f":"+COUNTIF($B$15:$B$54,P7)","v":4},{"$f":"+COUNTIF(B.06,\"SI\")","v":0},{"$f":"+COUNTIF(B.06,\"NO\")","v":0},{"$f":"+COUNTIF(B.06,\"NO APLICA\")","v":0}]
[null,null,null,null,null,null,null,null,null,null,null,null,null,null,null,"B.07",{"$f":"+COUNTIF($B$15:$B$54,P8)","v":3},{"$f":"+COUNTIF(B.07,\"SI\")","v":0},{"$f":"+COUNTIF(B.07,\"NO\")","v":0},{"$f":"+COUNTIF(B.07,\"NO APLICA\")","v":0}]
[null,{"$f":"IDENTIFICACION!$B$11","v":0}]
[null,"B.- ACTIVIDADES DE TRABAJO"]
[]
[null,"A continuación se indican las medidas de control relacionadas con la temática \"Actividades de trabajo\". En la columna respuesta debe indicar si se cumple la medida o si esta no aplica a la realidad del centro de trabajo. Por cada pregunta con respuesta negativa se generará una medida en el programa preventivo. "]
[]
[]
[null,"CÓDIGO\nAP","NÚMERO PREGUNTA","AGRUPACIÓN DE PELIGROS","NORMATIVA UTILIZADA","DESCRIPCIÓN PREGUNTA DE EVALUACIÓN","RESPUESTA"]
["B.01_1","B.01",1,"Trabajo en espacio confinado","Decreto Supremo N° 594, Condiciones básicas en los CT","¿Cumple con acreditar contar con capacitado teórica y práctica sobre los peligros, riesgos, consecuencias, medidas de control asociadas, uso correcto de equipos de medición de atmósfera y de equipos de protección personal?"]
["B.01_2","B.01",2,"Trabajo en espacio confinado","Decreto Supremo N° 594, Condiciones básicas en los CT","¿Cumple con acreditar que los equipos de protección personal básicos y específicos (equipos de respiración autónoma, equipos de cuerdas, etc.), equipos de ventilación forzada, equipos de medición u otros, se encuentren mantenidos, calibrados y/o certificados?"]
["B.02_1","B.02",1,"Trabajo en altura >= 1,8 metros","NCh 2501","Si utiliza andamios, ¿están construidos con materiales sólidos y resistentes a la corrosión atmosférica?"]
["B.02_2","B.02",2,"Trabajo en altura >= 1,8 metros","NCh 2501","Las bases sobre las que se sustenta el andamio, ¿están apoyadas sólidamente sobre estructuras adecuadas que permiten mantener la verticalidad del andamio y evitar que los pies derecho se hundan en el piso?"]
["B.02_3","B.02",3,"Trabajo en altura >= 1,8 metros","Decreto Supremo N° 594, Condiciones básicas en los CT","Si existen placas o planchas en el suelo que cubren aberturas o fosos, ¿están dispuestas de forma que resistan el paso de personas o vehículos, según sea el caso?"]
["B.03_1","B.03",1,"Trabajo con electricidad","Decreto Supremo N° 594, Condiciones básicas en los CT","¿Cuenta con los elementos de protección personal que cumplan con los requisitos, características y tipos que exige el trabajo con electricidad, además de tener la capacitación teórica y práctica necesaria para su correcto uso?"]
["B.04_1","B.04",1,"Trabajo administrativo en oficina","Decreto Supremo N° 594, Condiciones básicas en los CT","¿Se asegura de mantener pasillos limpios y libres de obstáculos, que permitan su desplazamiento en forma expedita y segura, y en caso de existir máquinas, que los pasillos por donde usted circula no sean inferiores a 150 centímetros?"]
["B.04_2","B.04",2,"Trabajo administrativo en oficina","Artículo 184, Código del Trabajo","¿Se asegura de mantener la instalación eléctrica en buenas condiciones, que permita el correcto funcionamiento de la instalación, asegurando que dispone de enchufes suficientes donde se necesiten y evitando el uso de extensiones eléctricas?"]
["B.04_3","B.04",3,"Trabajo administrativo en oficina","Decreto Supremo N°  44, Nuevo reglamento sobre PRP","¿Se asegura de ejecutar medidas básicas de seguridad para la manipulación de líquidos calientes, tales como mantener la taza con líquido caliente alejada del teclado o el área directa de trabajo, transitar con precaución cuando se manipulan estos, entre otras?"]
["B.05_1","B.05",1,"Trabajo con soldadura","D.S. 594, Condiciones básicas en los CT","¿Utiliza los elementos de protección personal acordes con las características y tipos que exige el riesgo a cubrir por trabajo con soldadura entre ellas protección facial, ocular y ropa de protección, además cumple con las normas de Certificación de Calidad de Elementos de Protección Personal contra Riesgos Ocupacionales.?"]
["B.05_2","B.05",2,"Trabajo con soldadura","Artículo 184, Código del Trabajo","¿Se asegura de que todos los equipos pesados portátiles utilizados para el trabajo con soldadura cuenten con un dispositivo de frenado o elementos de fijación que impida movimientos accidentales?"]
["B.05_3","B.05",3,"Trabajo con soldadura","Artículo 184, Código del Trabajo","¿Se asegura de utilizar equipos aprobados y certificados como sopletes, distribuidores (manifolds), reguladores, válvulas reductoras de presión, generadores de acetileno, máquinas de soldar, porta electrodos, entre otros?"]
["B.05_4","B.05",4,"Trabajo con soldadura","Artículo 184, Código del Trabajo","¿Se asegura de utilizar pantallas protectoras incombustibles o resistentes al fuego, para proteger a otras personas de la energía radiante y de las salpicaduras de la soldadura o corte?"]
["B.06_1","B.06",1,"Trabajo en manejo manual de cargas (MMC)","Ley Nº 20.001","¿Las cargas que se manipulan manualmente son inferiores a 50 kg.?"]
["B.06_2","B.06",2,"Trabajo en manejo manual de cargas (MMC)","Decreto N° 48, Nuevo reglamento MMC","¿Posee capacitación adecuada para realizar la manipulación manual de una forma segura?"]
["B.06_3","B.06",3,"Trabajo en manejo manual de cargas (MMC)","Decreto N° 48, Nuevo reglamento MMC","¿Utiliza guantes para el manejo manual de cargas?"]
["B.06_4","B.06",4,"Trabajo en manejo manual de cargas (MMC)","Decreto N° 48, Nuevo reglamento MMC","¿Levanta carga manualmente siguiendo el método de levantamiento seguro?"]
["B.07_5","B.07",1,"Trabajo con exposición agentes químicos","Decreto Supremo N°  594, art. 37;\n Decreto Supremo  N° 148, art. 6","¿Existe y se aplica un procedimiento para la recogida de derrames, de sustancias tóxicas o nocivas?"]
["B.07_6","B.07",2,"Trabajo con exposición agentes químicos","Decreto Supremo N° 594, art. 57","¿Se utilizan guantes y ropa impermeables a las sustancias con las que puede haber contacto dérmico?"]
["B.07_7","B.07",3,"Trabajo con exposición agentes químicos","Decreto Supremo N° 594, art. 3","¿Las sustancias químicas están contenidas en recipientes, los cuales a su vez están debidamente etiquetados y se conserva esa señalización durante su uso?"]

{"sheet":"QUEST_C","index":6,"n_rows":40,"n_cols":20,"rows_kept":40,"cut":false,"hidden":false,"merged":[[11,1,12,10]]}
[]
[]
[]
[]
[]
[]
[null,null,null,null,null,null,null,null,null,null,null,null,null,null,null,"C.06",{"$f":"+COUNTIF($B$15:$B$87,P7)","v":2},{"$f":"+COUNTIF(C.06,\"SI\")","v":0},{"$f":"+COUNTIF(C.06,\"NO\")","v":0},{"$f":"+COUNTIF(C.06,\"NO APLICA\")","v":0}]
[null,null,null,null,null,null,null,null,null,null,null,null,null,null,null,"C.07",{"$f":"+COUNTIF($B$15:$B$87,P8)","v":2},{"$f":"+COUNTIF(C.07,\"SI\")","v":0},{"$f":"+COUNTIF(C.07,\"NO\")","v":0},{"$f":"+COUNTIF(C.07,\"NO APLICA\")","v":0}]
[null,{"$f":"IDENTIFICACION!$B$11","v":0},null,null,null,null,null,null,null,null,null,null,null,null,null,"C.08",{"$f":"+COUNTIF($B$15:$B$87,P9)","v":2},{"$f":"+COUNTIF(C.08,\"SI\")","v":0},{"$f":"+COUNTIF(C.08,\"NO\")","v":0},{"$f":"+COUNTIF(C.08,\"NO APLICA\")","v":0}]
[null,"C.- CONDICIONES BÁSICAS DEL CENTRO DE TRABAJO"]
[]
[null,"A continuación se indican las medidas de control relacionadas con la temática \"Condiciones básicas del centro de trabajo\". En la columna respuesta debe indicar si se cumple la medida o si esta no aplica a la realidad del centro de trabajo. Por cada pregunta con respuesta negativa se generará una medida en el programa preventivo. "]
[]
[]
[null,"CÓDIGO\nAP","NÚMERO PREGUNTA","AGRUPACIÓN DE PELIGROS","NORMATIVA UTILIZADA","DESCRIPCIÓN PREGUNTA DE EVALUACIÓN","RESPUESTA"]
["C.01_1","C.01",1,"Instalación eléctrica y de gas","Artículo 184, Código del Trabajo","¿Ha implementado un programa de mantención de las instalaciones de Gas Licuado de Petróleo (GLP), las cuales son ejecutados por personal competente y autorizado por la Superintendencia de Electricidad y Combustibles (SEC)?"]
["C.01_2","C.01",2,"Instalación eléctrica y de gas","Artículo 184, Código del Trabajo","¿Cumple con que los tableros eléctricos cuentan con una cubierta para los equipos y con una puerta exterior, la cual está totalmente cerrada permitiéndose sobre ella sólo luces piloto de indicación de tablero energizado?"]
["C.01_3","C.01",3,"Instalación eléctrica y de gas","Artículo 184, Código del Trabajo","¿Cumple con que toda instalación eléctrica cuenta con un Sistema de Puesta a Tierra (SPT)?"]
["C.02_1","C.02",1,"Incendio y explosión","Decreto Supremo N° 594, Condiciones básicas en los CT","El almacenamiento de materiales y productos inflamables, ¿se realiza en armarios, bodegas modulares o en bodegas adaptadas para este fin, debidamente señalizadas?"]
["C.02_2","C.02",2,"Incendio y explosión","Decreto Supremo N° 594, Condiciones básicas en los CT","En aquellos lugares donde se generan residuos combustibles como retazos, trapos de limpieza, virutas, aserrín, entre otros, ¿se aplica un programa de limpieza periódica, el que considera la manipulación y disposición segura de estos residuos?"]
["C.02_3","C.02",3,"Incendio y explosión","Decreto Supremo N° 594, Condiciones básicas en los CT","¿Está prohibido fumar y utilizar fuentes de ignición (calor, fuego o chispas), en zonas donde se almacenan o se manejan o se trasvasijan productos combustibles e inflamables?"]
["C.02_4","C.02",4,"Incendio y explosión","Decreto Supremo N° 594, Condiciones básicas en los CT","En todas las instalaciones con riesgo de incendio, ¿existen extintores certificados, en número y distribución suficientes, y de la eficacia requerida para garantizar la cobertura completa de la superficie que deben atender?"]
["C.02_5","C.02",5,"Incendio y explosión","Decreto Supremo N° 594, Condiciones básicas en los CT","¿Los extintores se encuentran señalados de acuerdo a la normativa nacional relacionada con la señalización de seguridad siendo fácilmente visibles accesibles y ubicados a una altura máxima de 1,30 metros (medidos desde el suelo hasta la base del extintor)?"]
["C.02_6","C.02",6,"Incendio y explosión","Decreto Supremo N° 594, Condiciones básicas en los CT","¿Verifica periódicamente que los extintores cuenten con su revisión, control y mantención preventiva anual, actualizada?"]
["C.02_7","C.02",7,"Incendio y explosión","Decreto Supremo N° 594, Condiciones básicas en los CT","¿Ha sido instruido en el uso de extintores y existe un registro escrito de esta actividad?"]
["C.03_1","C.03",1,"Espacios y superficies de trabajo","Decreto Supremo N° 594, Condiciones básicas en los CT","¿Las superficies mojadas o resbaladizas se mantienen protegidas, cubiertas con materiales antideslizantes o cuentan con drenaje (cuando corresponda)?"]
["C.03_2","C.03",2,"Espacios y superficies de trabajo","Decreto Supremo N° 594, Condiciones básicas en los CT","¿Mantiene señalización de piso mojado cuando se ejecutan labores de limpieza normal?"]
["C.03_3","C.03",3,"Espacios y superficies de trabajo","Decreto Supremo N°  47, OGUC","¿Las aberturas de pisos, costados abiertos de las escaleras, descansos, pasarelas, rampas, balcones, terrazas y ventanas, están provistos de barandas o antepechos con solidez suficiente para evitar la caída de personas u objetos?"]
["C.04_1","C.04",1,"Escaleras, rampas y Andenes","Ley N° 16.744 ","En el caso de efectuar sus actividades en andenes de carga, ¿están protegidos con barandas y rodapiés?"]
["C.04_2","C.04",2,"Escaleras, rampas y Andenes","Decreto Supremo N°  47, OGUC","Los peldaños de las escaleras, ¿tienen un ancho de huella no inferior a 0,28 m en proyección horizontal y una altura de contrahuella no mayor a 0,18 m ni menor a 0,13 m?"]
["C.04_3","C.04",3,"Escaleras, rampas y Andenes","Decreto Supremo N°  47, OGUC","Las escaleras de peldaños y sus descansos, ¿cuentan con pasamanos, ubicados a una altura entre 85 cm y 105 cm, medidos a partir cada peldaño o del descanso?"]
["C.05_1","C.05",1,"Vías de evacuación","Decreto Supremo N° 594, Condiciones básicas en los CT","¿Verifica periódicamente que las salidas de emergencia se abren hacia el exterior del recinto, están despejadas y en perfecto estado de funcionamiento y sin llave, candado u otro medio que impida su fácil apertura?"]
["C.05_2","C.05",2,"Vías de evacuación","Decreto Supremo N° 594, Condiciones básicas en los CT","¿Verifica periódicamente que las vías de evacuación se encuentren despejadas y en perfecto estado (sin desniveles) que perturben el libre transito frente a una emergencia?"]
["C.05_3","C.05",3,"Vías de evacuación","Decreto Supremo N° 594, Condiciones básicas en los CT","¿Las vías de evacuación y salidas de evacuación están debidamente señalizadas y son fácilmente reconocibles?"]
["C.06_1","C.06",1,"Iluminación","Decreto Supremo N° 594, Condiciones básicas en los CT","¿El número de luminarias en el lugar de trabajo es suficiente ?"]
["C.06_2","C.06",2,"Iluminación","Decreto Supremo N° 594, Condiciones básicas en los CT","¿Los focos luminosos tienen elementos difusores de luz y/o protectores antideslumbrantes?"]
["C.07_1","C.07",1,"Señalización","Decreto Supremo N° 594, Condiciones básicas en los CT","¿Las vías de evacuación se encuentran señalizadas?"]
["C.07_2","C.07",2,"Señalización","Decreto Supremo N° 594, Condiciones básicas en los CT","¿Las zonas de peligro del lugar de trabajo se encuentran señalizadas?"]
["C.08_1","C.08",1,"Condiciones de orden y aseo","Decreto Supremo N° 594, Condiciones básicas en los CT","¿Se realiza una limpieza periódica del recinto o lugar de trabajo?"]
["C.08_2","C.08",2,"Condiciones de orden y aseo","Decreto Supremo N° 594, Condiciones básicas en los CT","Las manchas de grasa, aceite u otras sustancias en torno a las máquinas, ¿son limpiadas periódicamente?"]

{"sheet":"PROGRAMA","index":7,"n_rows":211,"n_cols":14,"rows_kept":211,"cut":false,"hidden":false,"merged":[[16,2,16,4],[16,7,16,8],[12,2,14,12],[16,11,16,12],[16,5,16,6]]}
[]
[]
[]
[]
[]
[]
[]
[]
[]
[]
[null,null,"PROGRAMA PREVENTIVO"]
[]
[null,null,"A continuación se indican las medidas de control, preventivas y/o correctivas, que se deben aplicar a partir de la evaluación efectuada. Para esto, se debe indicar el responsable de gestionar la actividad y la fecha máxima de implementación. Ejecutada la medida, se debe indicar la fecha real de implementación, asegurando que se cuenta con la evidencia de cumplimiento. "]
[]
[]
[]
[null,null,"LUGAR DE TRABAJO",null,null,"EXPOSICIÓN",null,"MEDIDA DE CONTROL (PREVENTIVA/CORRECTIVA)",null,"PLANIFICACIÓN","PLAZOS EJECUCIÓN","CIERRE DE LA MEDIDA"]
[]
[null,null,"COD.","NRO.","NOMBRE","AGRUPACIÓN DE PELIGROS","TIPO POTENCIAL DE ACCIDENTE","JERARQUÍA DE CONTROL","DESCRIPCIÓN DE LA MEDIDA DE CONTROL \n(PREVENTIVA/CORRECTIVA)","RESPONSABLE DE EJECUCIÓN","FECHA MÁXIMA IMPLEMENTACIÓN","FECHA REAL DE IMPLEMENTACIÓN","ESTADO DE LA MEDIDA"]
["A","A.01_1","A.01",1,"Trabajo independiente","Máquinas portátiles","Amputación de cualquier parte del cuerpo por atrapamiento","Técnico/ Ingeniería","Debe asegurarse que la herramienta portátil que usted utiliza esté provista de sistema hombre muerto o gatillo de seguridad con asa de protección, para evitar activaciones involuntarias.",null,null,null,{"$f":"+IF(L20=\"\",\"Pendiente\",\"Finalizada\")","v":"Pendiente"}]
["A","A.01_2","A.01",2,"Trabajo independiente","Máquinas portátiles","Amputación de cualquier parte del cuerpo por atrapamiento","Elemento de Protección Personal","Debe asegurarse de utilizar los elementos de protección personal que cumplan con las características y tipos que exige el riesgo a cubrir por el trabajo con máquinas portátiles. Los elementos de protección personal, sean éstos de procedencia nacional o extranjera, deberán cumplir con las normas y exigencias de calidad Certificación de Calidad de Elementos de Protección Personal contra Riesgos Ocupacionales.",null,null,null,{"$f":"+IF(L21=\"\",\"Pendiente\",\"Finalizada\")","v":"Pendiente"}]
["A","A.01_3","A.01",3,"Trabajo independiente","Máquinas portátiles","Exposición o contacto con electricidad","Técnico/ Ingeniería","Debe asegurarse de conectar la herramienta portátil que usted utilice en circuitos eléctricos que se encuentren protegidos con interruptores automáticos, protectores diferenciales y en donde el sistema de puesta a tierra funcione correctamente",null,null,null,{"$f":"+IF(L22=\"\",\"Pendiente\",\"Finalizada\")","v":"Pendiente"}]
["A","A.01_4","A.01",4,"Trabajo independiente","Máquinas portátiles","Exposición o contacto con electricidad","Control administrativo","Debe asegurarse de que el enchufe de la herramienta portátil que usted utiliza sea adecuado al toma corriente de la instalación",null,null,null,"Pendiente"]
["A","A.02_1","A.02",1,"Trabajo independiente","Herramientas manuales","Golpes por/con/contra no especificados en otra parte","Control administrativo","Debe implementar un plan de mantenimiento de las herramientas manuales dispuestas para sus trabajos, descartando aquellas herramientas que se encuentren defectuosas.",null,null,null,"Pendiente"]
["A","A.02_2","A.02",2,"Trabajo independiente","Herramientas manuales","Amputación de cualquier parte del cuerpo por atrapamiento","Control administrativo","Debe transportar y almacenar las herramientas, asegurando su buen estado de conservación, utilizando cajas o bolsas resistentes de acuerdo a las indicaciones del fabricante, asegurándose de evitar la exposición de componentes con filos o puntas.",null,null,null,"Pendiente"]
["A","A.03_1","A.03",1,"Trabajo independiente","Almacenamiento de materiales","Choque / colisión o roce lateral en instalaciones de la empresa","Control administrativo","Debe establecer lugares específicos para almacenar o acopiar materiales, estableciendo límites del área de almacenamiento de acuerdo a las categorías de los materiales.",null,null,null,"Pendiente"]
["A","A.03_2","A.03",2,"Trabajo independiente","Almacenamiento de materiales","Golpeado por objetos de derrumbe","Control administrativo","Debe mantener empotradas o ancladas las estanterías o estructuras dispuestas para el almacenamiento de materiales, considerando las condiciones de máxima carga y la estabilidad de estos.",null,null,null,"Pendiente"]
["A","A.03_3","A.03",3,"Trabajo independiente","Almacenamiento de materiales","Golpeado por objetos de derrumbe","Control administrativo","Debe implementar escalas de mano, pisos o taburetes o elementos similares para la carga y descarga de materiales en estanterías. Estos equipos auxiliares deberán contar con elementos antideslizantes en sus puntos de apoyo y estar acordes con la altura de las estanterías.",null,null,null,"Pendiente"]
["A","A.04_1","A.04",1,"Trabajo independiente","Aparatos a presión","Explosión o implosión (de materiales o equipos)","Control administrativo","Deberá ejecutar mantención preventiva para el aparato a presión",null,null,null,"Pendiente"]
["A","A.04_2","A.04",2,"Trabajo independiente","Aparatos a presión","Explosión o implosión (de materiales o equipos)","Control administrativo","Debe asegurarse de conocer las especificaciones de uso, prohibiciones, medidas preventivas y saber como actuar ante situaciones de emergencia producto del uso del aparato a presión",null,null,null,"Pendiente"]
["A","A.04_3","A.04",3,"Trabajo independiente","Aparatos a presión","Explosión o implosión (de materiales o equipos)","Control administrativo","Deberá asegurarse cuando esté utilizando el aparato a presión que no se ejecuten otras actividades a su alrededor no relacionadas con la tarea",null,null,null,"Pendiente"]
["A","A.04_4","A.04",4,"Trabajo independiente","Aparatos a presión","Explosión o implosión (de materiales o equipos)","Control administrativo","Deberá asegurarse de prohibir el ingreso de toda persona ajena o no autorizada por usted cuando esté realizando tareas con aparatos a presión",null,null,null,"Pendiente"]
["A","A.04_5","A.04",5,"Trabajo independiente","Aparatos a presión","Incendio (fuego no controlado)","Control administrativo","Deberá procurar mantener el área cercana en donde opera el aparato a presión libre de almacenamiento de productos, materias primas u otros elementos",null,null,null,"Pendiente"]
["A","A.04_6","A.04",6,"Trabajo independiente","Aparatos a presión","Contacto con fuego, sustancias u objetos calientes (altas temperaturas)","Control administrativo","Deberá proteger aquellas partes del aparato a presión que se encuentran a elevadas temperaturas que podrían entrar en contacto directo con usted",null,null,null,"Pendiente"]
["A","A.05_1","A.05",1,"Trabajo independiente","Equipos de elevación (cargas)","Caída a distinto nivel - Desde alturas >= 1,8 metros","Control administrativo","Deberá establecerse un programa de mantención periódico, con tal de detectar deficiencias en el estado de conservación y mantención de los elementos que componen los aparejos de elevación de cargas (anclajes, ganchos, cuerdas, cadenas, eslingas, otros), y mantener registro documentado de esta actividad",null,null,null,"Pendiente"]
["A","A.05_2","A.05",2,"Trabajo independiente","Equipos de elevación (cargas)","Caída a distinto nivel - Desde alturas >= 1,8 metros","Control administrativo","Deberá incorporar un dispositivo de parada de emergencia en los equipos de elevación, claramente señalizado y accesible",null,null,null,"Pendiente"]
["A","A.06_1","A.06",1,"Trabajo independiente","Conducción y uso de maquinaria pesada","Atrapamiento por un objeto (materiales aplastante)","Control administrativo","Se debe implementar un plan de mantención de la maquinaria existente, incorporando la revisión de todos los principios de operación y componentes rodantes.",null,null,null,"Pendiente"]
["A","A.06_2","A.06",2,"Trabajo independiente","Conducción y uso de maquinaria pesada","Atropello / Aplastamiento / Golpe / Colisión / Volcamiento","Control administrativo","Se deben utilizar elementos de protección personal como guantes, casco, zapatos de seguridad, antiparras, protector auditivo, mascara con filtro N-P100 u otros según corresponda",null,null,null,"Pendiente"]
["A","A.07_1","A.07",1,"Trabajo independiente","Conducción y uso de vehículos","Choque / colisión o roce lateral en la vía publica","Control administrativo","Se debe implementar, ejecutar y controlar un programa de mantenimiento para los vehículos utilizados.",null,null,null,"Pendiente"]
["A","A.07_2","A.07",2,"Trabajo independiente","Conducción y uso de vehículos","Choque / colisión o roce lateral en la vía publica","Control administrativo","Se debe implementar un sistema de control que permita asegurar la existencia y vigencia de la documentación de los vehículos y el conductor, teniendo en cuenta:\na) Revisión técnica (los sistemas de dirección, frenos, luces, neumáticos y combustión interna).\nb) Permiso de circulación.\nc) Seguro Obligatorio (SOAP).\nd) Licencia de conducir vigente; de la clase que corresponda al tipo de vehículo a utilizar.",null,null,null,"Pendiente"]
["A","A.08_1","A.08",1,"Trabajo independiente","Transpaleta manual / carros","Sobreesfuerzos al empujar y/o tirar objetos","Control administrativo","Debe mantener señalización visible de la capacidad de peso máximo de los carros manuales de carga que utiliza.",null,null,null,"Pendiente"]
["A","A.08_2","A.08",2,"Trabajo independiente","Transpaleta manual / carros","Atrapamiento entre dos objetos móviles","Control administrativo","Debe poseer conocimiento del manual de uso  proporcionado por el fabricante de la transpaleta y/o carros manual que usted utiliza. Si no posee este manual, lo puede descargar desde la pagina web del fabricante.",null,null,null,"Pendiente"]
["A","A.09_1","A.09",1,"Trabajo independiente","Almacenamiento de gases (argón, oxigeno, etc.)","Explosión o implosión (de materiales o equipos)","Sustitución","Todos los cilindros deben estar visiblemente en buen estado, es decir; sin cortes, hendiduras, abolladuras, corrosión o señales de arco eléctrico'",null,null,null,"Pendiente"]
["A","A.09_2","A.09",2,"Trabajo independiente","Almacenamiento de gases (argón, oxigeno, etc.)","Contacto por inhalación de sustancias nocivas (a través de la nariz, la boca)","Técnico/ Ingeniería","Se deberá disponer de cubierta protectora, ya sea gorro o caperuza para todos los cilindros de gases almacenados, incluso los vacíos",null,null,null,"Pendiente"]
["A","A.09_3","A.09",3,"Trabajo independiente","Almacenamiento de gases (argón, oxigeno, etc.)","Golpeado por objetos que están siendo manipulados","Técnico/ Ingeniería","Deberá almacenar todos los cilindros de gas en posición vertical y deberá disponer de un sistema de cadenas para sujetarlos de forma individual a una pared o baranda que resista el peso",null,null,null,"Pendiente"]
["A","A.09_4","A.09",4,"Trabajo independiente","Almacenamiento de gases (argón, oxigeno, etc.)","Golpeado por objetos que están siendo manipulados","Técnico/ Ingeniería","Deberá implementar y adecuar el área de almacenamiento de los cilindros de gas para que sea un lugar fresco, protegido de la humedad y del sol",null,null,null,"Pendiente"]
["B","B.01_1","B.01",1,"Trabajo independiente","Trabajo en espacio confinado","Contacto por inhalación de sustancias nocivas (a través de la nariz, la boca)","Control administrativo","Debe acreditar contar con capacitado teórica y práctica sobre los peligros, riesgos, consecuencias, medidas de control asociadas, uso correcto de equipos de medición de atmósfera y de equipos de protección personal.",null,null,null,"Pendiente"]
["B","B.01_2","B.01",2,"Trabajo independiente","Trabajo en espacio confinado","Contacto por inhalación de sustancias nocivas (a través de la nariz, la boca)","Control administrativo","Debe acreditar que los equipos de protección personal básicos y específicos (equipos de respiración autónoma, equipos de cuerdas, etc.), equipos de ventilación forzada, equipos de medición u otros, se encuentren mantenidos, calibrados y/o certificados.",null,null,null,"Pendiente"]
["B","B.02_1","B.02",1,"Trabajo independiente","Trabajo en altura >= 1,8 metros","Conjunto de riesgos","Control administrativo","Se debe efectuar un análisis acucioso a los materiales que forman parte de los andamios ya que pueden tener corrosión que podrían afectar la resistencia de estos. En caso de ser necesario se deberán reemplazar los materiales que presenten daño.",null,null,null,"Pendiente"]
["B","B.02_2","B.02",2,"Trabajo independiente","Trabajo en altura >= 1,8 metros","Conjunto de riesgos","Control administrativo","Se debe implementar placas base de material resistente (acero, madera) con un espesor mínimo igual a 5 mm., y cuya superficie de contacto con su plano de apoyo sea como mínimo de 150 cm2. Uno de sus lados deberá tener como mínimo 120 mm. de largo",null,null,null,"Pendiente"]
["B","B.02_3","B.02",3,"Trabajo independiente","Trabajo en altura >= 1,8 metros","Caída de objetos por desplome o derrumbamiento","Control administrativo","Se deberán proteger las aberturas en el suelo, por donde circula, con placas o planchas que soporten al menos el peso de los vehículos y la carga que pudieran transportar.",null,null,null,"Pendiente"]
["B","B.03_1","B.03",1,"Trabajo independiente","Trabajo con electricidad","Exposición o contacto con electricidad","Elemento de Protección Personal","Debe poseer los EPP que cumplan con los requisitos, características y tipos que exige el trabajo con electricidad, además de tener la capacitación teórica y práctica necesaria para su correcto uso.",null,null,null,"Pendiente"]
["B","B.04_1","B.04",1,"Trabajo independiente","Trabajo administrativo en oficina","Caídas a un mismo nivel","Control administrativo","Debe asegurarse de mantener pasillos limpios y libres de obstáculos que permitan su desplazamiento en forma expedita y segura, y en caso de existir máquinas que los pasillos por donde usted circula no sean inferiores a 150 centímetros",null,null,null,"Pendiente"]
["B","B.04_2","B.04",2,"Trabajo independiente","Trabajo administrativo en oficina","Caídas a un mismo nivel","Control administrativo","Debe asegurarse de mantener la instalación eléctrica en buenas condiciones, que permita el correcto funcionamiento de la instalación, asegurando la disponibilidad de enchufes suficientes donde se necesiten y evitando el uso de extensiones eléctricas",null,null,null,"Pendiente"]
["B","B.04_3","B.04",3,"Trabajo independiente","Trabajo administrativo en oficina","Caída a distinto nivel - Desde alturas >= 1,8 metros","Control administrativo","Deberá asegurarse de ejecutar medidas básicas de seguridad para la manipulación de líquidos calientes, tales como mantener la taza con líquido caliente alejada del teclado o el área directa de trabajo, transitar con precaución cuando se manipulan estos, entre otras",null,null,null,"Pendiente"]
["B","B.05_1","B.05",1,"Trabajo independiente","Trabajo con soldadura","Proyección de partículas o fragmentos","Elemento de Protección Personal","Debe asegurarse de utilizar los elementos de protección personal que cumplan con las características y tipos que exige el riesgo a cubrir por el trabajo con soldadura entre ellas protección facial, ocular y ropa de protección..\nLos elementos de protección personal, sean éstos de procedencia nacional o extranjera, deberán cumplir con las normas de Certificación de Calidad de Elementos de Protección Personal contra Riesgos Ocupacionales.",null,null,null,"Pendiente"]
["B","B.05_2","B.05",2,"Trabajo independiente","Trabajo con soldadura","Exposición o contacto con electricidad","Control administrativo","Debe asegurarse que todos los equipos pesados portátiles utilizados para el trabajo con soldadura cuenten con un dispositivo de frenado o elementos de fijación que impida movimientos accidentales",null,null,null,"Pendiente"]
["B","B.05_3","B.05",3,"Trabajo independiente","Trabajo con soldadura","Exposición o contacto con electricidad","Control administrativo","Debe asegurarse de utilizar equipos aprobados y certificados como sopletes, distribuidores (manifolds), reguladores, válvulas reductoras de presión, generadores de acetileno, máquinas de soldar, porta electrodos, entre otros",null,null,null,"Pendiente"]
["B","B.05_4","B.05",4,"Trabajo independiente","Trabajo con soldadura","Proyección de partículas o fragmentos","Control administrativo","Debe asegurarse de utilizar pantallas protectoras incombustibles o resistentes al fuego, para proteger a otras personas de la energía radiante y de las salpicaduras de la soldadura o corte",null,null,null,"Pendiente"]
["B","B.06_1","B.06",1,"Trabajo independiente","Trabajo en manejo manual de cargas (MMC)","Fatiga física","Control administrativo","Toda manipulación de cargas superior a 50 Kg deberá implicar el uso obligatorio de elementos mecanizados o la automatización de procesos. Este requerimiento deberá permitir, además, que tanto mujeres como menores de 18 años no levanten cargas superiores a 20 Kg.",null,null,null,"Pendiente"]
["B","B.06_2","B.06",2,"Trabajo independiente","Trabajo en manejo manual de cargas (MMC)","Sobreesfuerzos","Control administrativo","Debe capacitarse sobre los riesgos derivados del manejo manual de carga y las formas de prevenirlos. Asimismo, se les deberá entregar información acerca de la carga que debe manejar manualmente, uso correcto de las ayudas mecánicas, uso correcto de los equipos de protección personal, en caso de ser necesario, y técnicas seguras para el manejo manual de carga.",null,null,null,"Pendiente"]
["B","B.06_3","B.06",3,"Trabajo independiente","Trabajo en manejo manual de cargas (MMC)","Cortes por objetos o herramientas","Control administrativo","Se debe utilizar guantes siempre que se efectúa manejo manual de cargas.",null,null,null,"Pendiente"]
["B","B.06_4","B.06",4,"Trabajo independiente","Trabajo en manejo manual de cargas (MMC)","Exposición a posturas forzadas","Control administrativo","El levantamiento manual de cargas se deberá realizar siguiendo el método de levantamiento seguro de carga: colocar un pie detrás de la carga y otro al costado, doblar las rodillas manteniendo la espalda recta al ponerse en cuclillas, pegar el mentón al pecho, tomar firmemente el objeto que se pretende levantar por medio de un correcto agarre palmar, mantener los brazos y codos pegados al cuerpo y levantar la carga con la fuerza de los muslos evitando curvar la columna.",null,null,null,"Pendiente"]
["B","B.07_5","B.07",5,"Trabajo independiente","Trabajo con exposición agentes químicos","Exposición a sustancias nocivas","Control administrativo","En caso de derrame se deberá realizar la recogida y disposición final del mismo según las indicaciones y mediante los equipos mencionados en la ficha de seguridad del producto además de lo señalado en la legislación vigente sobre residuos (Decreto Supremo Nº 148).",null,null,null,"Pendiente"]
["B","B.07_6","B.07",6,"Trabajo independiente","Trabajo con exposición agentes químicos","Exposición a contaminantes químicos por contacto","Control administrativo","En caso de que exista la posibilidad de contacto dérmico con agentes químicos se debe utilizar guantes, calzado y ropa impermeable, resistentes a la acción de dichos agentes.",null,null,null,"Pendiente"]
["B","B.07_7","B.07",7,"Trabajo independiente","Trabajo con exposición agentes químicos","Exposición a sustancias nocivas","Control administrativo","Las sustancias y preparados peligrosos deberán guardarse en recipientes resistentes a la acción química (plástico o metal) y mantenerse siempre tapados. Estos envases deberán rotularse con el nombre del contenido y tendrán que incluir los correspondientes símbolos e indicaciones de peligro. Queda absolutamente prohibido guardar estas sustancias en recipientes o envases que previamente contuvieron alimentos (ej.: envases de bebidas gaseosas). Solicite al proveedor la hoja de seguridad de cada producto.",null,null,null,"Pendiente"]
["C","C.01_1","C.01",1,"Trabajo independiente","Instalación eléctrica y de gas","Incendio (fuego no controlado)","Control administrativo","Debe implementar un programa de mantención, reparación e inspección de las instalaciones de GLP.",null,null,null,"Pendiente"]
["C","C.01_2","C.01",2,"Trabajo independiente","Instalación eléctrica y de gas","Exposición o contacto con electricidad","Técnico/ Ingeniería","Debe considerar que los tableros eléctricos cuenten con una cubierta cubre equipos y con una puerta exterior. La puerta exterior será totalmente cerrada permitiéndose sobre ella sólo luces piloto de indicación de tablero energizado.",null,null,null,"Pendiente"]
["C","C.01_3","C.01",3,"Trabajo independiente","Instalación eléctrica y de gas","Exposición o contacto con electricidad","Técnico/ Ingeniería","Debe considerar que toda instalación eléctrica disponga de un Sistema de Puesta a Tierra (SPT), para evitar que las personas en contacto con la misma, tanto en el interior como en el exterior, queden sometidas a tensiones de paso, de contacto o transferidas, que superen los umbrales que soporta el ser humano.",null,null,null,"Pendiente"]
["C","C.02_1","C.02",1,"Trabajo independiente","Incendio y explosión","Incendio (fuego no controlado)","Control administrativo","Debe realizar el almacenamiento de materiales y productos inflamables en recintos específicos destinados para tales efectos, en las condiciones adecuadas a las características de cada sustancia y deberán estar identificados de acuerdo a la norma chilena NCh1411/4 Of. 1978, Prevención de riesgos-Parte 4; Identificación de riesgos de materiales.'",null,null,null,"Pendiente"]
["C","C.02_2","C.02",2,"Trabajo independiente","Incendio y explosión","Incendio (fuego no controlado)","Control administrativo","Debe realizar la limpieza periódica de aquellos lugares donde se generan residuos combustibles como retazos, trapos de limpieza, virutas, aserrín, entre otros, y asegurarse que la disposición de los residuos se realice en lugares seguros. Se recomienda implementar un programa de limpieza en estos lugares y difundirlo entre los involucrados.",null,null,null,"Pendiente"]
["C","C.02_3","C.02",3,"Trabajo independiente","Incendio y explosión","Incendio (fuego no controlado)","Control administrativo","Debe estar prohibido fumar o emplear útiles de ignición ( equipos que generen chispas, calor o fuego) en las áreas donde se almacenan o se manejan productos combustibles, o se trasvasijan líquidos inflamables. Adicionalmente, se deberá señalizar convenientemente esta restricción por medio de señalizaciones de seguridad que cumplan con la normativa chilena sobre la materia.",null,null,null,"Pendiente"]
["C","C.02_4","C.02",4,"Trabajo independiente","Incendio y explosión","Incendio (fuego no controlado)","Control administrativo","Debe disponer de extintores portátiles certificados en las proximidades de los lugares con riesgo de incendio de modo que desde cualquier punto, el recorrido hasta el equipo más cercano no supere la distancia máxima de traslado establecida por la normativa vigente y se encuentre libre de cualquier obstáculo, ubicados a una altura máxima de 1,30 metros, medidos desde el suelo hasta la base del extintor. Aquellos que deban ser ubicados a la intemperie deberán estar ubicados en un nicho o gabinete que permita su retiro expedito. Los extintores deben ser seleccionados teniendo en cuenta los materiales combustibles o inflamables existentes en el lugar y la fácil manipulación por parte de los trabajadores, considerando que el potencial mínimo de extinción de 4A-10BC para el caso de los extintores de polvo químico seco, o 10BC para el caso de extintores de CO2.",null,null,null,"Pendiente"]
["C","C.02_5","C.02",5,"Trabajo independiente","Incendio y explosión","Incendio (fuego no controlado)","Control administrativo","Debe señalizar la totalidad de los extintores. Dicha señalización debe cumplir con la normativa nacional relacionada con señalizaciones de seguridad (NCh1411) y deberá ser ubicada de preferencia sobre cada extintor con el objetivo que sea visible desde cualquier punto del área de trabajo.",null,null,null,"Pendiente"]
["C","C.02_6","C.02",6,"Trabajo independiente","Incendio y explosión","Incendio (fuego no controlado)","Control administrativo","Debe verificar periódicamente que los extintores cuente con su revisión, control y mantención preventiva, 1 vez al año, según normas chilenas oficiales, realizada por el fabricante o servicio técnico, de acuerdo con lo indicado en la normativa vigente, lo que debe estar señalado en la etiqueta correspondiente, a fin de verificar sus condiciones de funcionamiento. Debe asegurarse que en el periodo en que se realice la mantención de un extintor el lugar de trabajo no quede desprovisto.",null,null,null,"Pendiente"]
["C","C.02_7","C.02",7,"Trabajo independiente","Incendio y explosión","Incendio (fuego no controlado)","Control administrativo","Debe estar instruido y entrenado sobre la manera correcta de usar los extintores en caso de emergencia. Debe dejar un registro escrito de esta actividad.",null,null,null,"Pendiente"]
["C","C.03_1","C.03",1,"Trabajo independiente","Espacios y superficies de trabajo","Contacto por inhalación de sustancias nocivas (a través de la nariz, la boca)","Técnico/ Ingeniería","Las superficies mojadas o resbaladizas deberán ser protegidas, cubiertas con materiales antideslizantes o contar con drenaje (cuando corresponda)",null,null,null,"Pendiente"]
["C","C.03_2","C.03",2,"Trabajo independiente","Espacios y superficies de trabajo","Caídas a un mismo nivel","Control administrativo","Deberá mantener señalización de piso mojado cuando se ejecutan labores de limpieza normal",null,null,null,"Pendiente"]
["C","C.03_3","C.03",3,"Trabajo independiente","Espacios y superficies de trabajo","Caídas a un mismo nivel","Técnico/ Ingeniería","Deberá implementar en las aberturas de pisos, costados abiertos de las escaleras, descansos, pasarelas, rampas, balcones, terrazas y ventanas, barandas o antepechos con solidez suficiente para evitar la caída de personas u objetos.",null,null,null,"Pendiente"]
["C","C.04_1","C.04",1,"Trabajo independiente","Escaleras, rampas y Andenes","Caídas no especificados en otra parte","Técnico/ Ingeniería","Debe proteger, en el andén de carga, la zona donde existe riesgo de caída de personas a más de 1,8 metros de altura, mediante la implementación de una baranda de 1 m. de alto. Adicionalmente, se recomienda implementar rodapiés para evitar la caída de materiales.",null,null,null,"Pendiente"]
["C","C.04_2","C.04",2,"Trabajo independiente","Escaleras, rampas y Andenes","Otros tipos de accidentes potenciales no clasificados","Técnico/ Ingeniería","Debe realizar las modificaciones necesarias para que los peldaños de la(s) escalera(s) cumplan con las dimensiones establecidas en la Ordenanza General de Construcción Asegurándose que estos cuenten con un ancho de huella no inferior a 0,28 m en proyección horizontal y una altura de contrahuella no mayor a 0,18 m ni menor a 0,13 m.",null,null,null,"Pendiente"]
["C","C.04_3","C.04",3,"Trabajo independiente","Escaleras, rampas y Andenes","Caídas no especificados en otra parte","Técnico/ Ingeniería","Debe implementar pasamanos en la(s) escalera(s) y descansos (de preferencia en ambos costados), la altura de la ubicación del pasamanos en los tramos inclinados será entre 0,85 m y 1,05 m, medidos verticalmente a partir del peldaño, y en los descansos o vestíbulos será entre 0,95 m y 1,05 m. Aquellas Las escaleras de cuatro escalones o más o que se eleven a más de 0,76 m de altura deben tener, al menos, un pasamanos. El material y superficie de los pasamanos debe ser lisa, libre de astillas o bordes filosos que pudieran provocar punciones, laceraciones o que la ropa se enganche.",null,null,null,"Pendiente"]
["C","C.05_1","C.05",1,"Trabajo independiente","Vías de evacuación","Otros tipos de accidentes potenciales no clasificados","Control administrativo","Debe verificar periódicamente que las salidas de emergencia funcionan correctamente, están libres de obstáculos, se abren en el sentido de la evacuación y permanecen sin llave, candado u otro medio que impida su fácil apertura. Se sugiere contar con un plan de verificación.",null,null,null,"Pendiente"]
["C","C.05_2","C.05",2,"Trabajo independiente","Vías de evacuación","Otros tipos de accidentes potenciales no clasificados","Control administrativo","Debe verificar periódicamente que las vías de evacuación están libres de obstáculos y en perfecto estado. Se sugiere contar con un plan de verificación.",null,null,null,{"$f":"+IF(L84=\"\",\"Pendiente\",\"Finalizada\")","v":"Pendiente"}]
["C","C.05_3","C.05",3,"Trabajo independiente","Vías de evacuación","Otros tipos de accidentes potenciales no clasificados","Control administrativo","Toda vía de evacuación y salida de emergencia debe estar identificada mediante señales de seguridad. Deben contemplar las señales necesarias para facilitar la evacuación de los ocupantes hasta el exterior, minimizando cualquier posibilidad de confusión durante el recorrido de escape en situaciones de emergencia. Así mismo, las salida de emergencia deben ser fácilmente reconocibles como tales mediante señalización.",null,null,null,"Pendiente"]
["C","C.06_1","C.06",1,"Trabajo independiente","Iluminación","Otros tipos de accidentes potenciales no clasificados","Control administrativo","Debe realizar una evaluación de los niveles de iluminación para determinar si la iluminación existente es adecuada para el trabajo que realiza.",null,null,null,"Pendiente"]
["C","C.06_2","C.06",2,"Trabajo independiente","Iluminación","Otros tipos de accidentes potenciales no clasificados","Control administrativo","Debe implementar un difusor en los focos luminosos, sobre todo en aquellos de alta luminancia, de forma que impidan el deslumbramiento.",null,null,null,"Pendiente"]
["C","C.07_1","C.07",1,"Trabajo independiente","Señalización","Otros tipos de accidentes potenciales no clasificados","Control administrativo","Todo lugar de trabajo deberán contar con vías de evacuación horizontales y/o verticales que, además de cumplir con las exigencias de la Ordenanza General de Urbanismo y Construcción, dispongan de salidas en número, capacidad y ubicación y con la identificación apropiada para permitir la segura, rápida y expedita salida de todos sus ocupantes hacia zonas de seguridad.",null,null,null,"Pendiente"]
["C","C.07_2","C.07",2,"Trabajo independiente","Señalización","Otros tipos de accidentes potenciales no clasificados","Control administrativo","Debe contar con señalización visible y permanente en las zonas de peligro, indicando el agente y/o condición de riesgo, así como las vías de escape y zonas de seguridad ante emergencias.",null,null,null,"Pendiente"]
["C","C.08_1","C.08",1,"Trabajo independiente","Condiciones de orden y aseo","Caídas a un mismo nivel","Control administrativo","El tipo de trabajo que se realiza requiere una limpieza diaria. Téngalo en cuenta en la distribución de tareas diarias.",null,null,null,"Pendiente"]
["C","C.08_2","C.08",2,"Trabajo independiente","Condiciones de orden y aseo","Caídas a un mismo nivel","Control administrativo","Desarrolle e implemente un procedimiento de limpieza periódica del recinto, con tal de evitar la acumulación de residuos y/o desperdicios en el suelo, especialmente en aquellas zonas en las que, por uso de máquinas o herramientas de trabajo, pudieran acumularse en el suelo sustancias resbaladizas (grasas, aceites).",null,null,null,"Pendiente"]
[null,null,null,null,null,null,null,null,null,null,null,null,null,{"$f":"IF(A92=\"A\",+VLOOKUP(B92,QUEST_A!$A$16:$G$107,7,FALSE),IF(A92=\"B\",+VLOOKUP(B92,QUEST_B!$A$16:$G$78,7,FALSE),IF(A92=\"C\",+VLOOKUP(B92,QUEST_C!$A$16:$G$51,7,FALSE),\"\")))","v":""}]
[null,null,null,null,null,null,null,null,null,null,null,null,null,{"$f":"IF(A93=\"A\",+VLOOKUP(B93,QUEST_A!$A$16:$G$107,7,FALSE),IF(A93=\"B\",+VLOOKUP(B93,QUEST_B!$A$16:$G$78,7,FALSE),IF(A93=\"C\",+VLOOKUP(B93,QUEST_C!$A$16:$G$51,7,FALSE),\"\")))","v":""}]
[null,null,null,null,null,null,null,null,null,null,null,null,null,{"$f":"IF(A94=\"A\",+VLOOKUP(B94,QUEST_A!$A$16:$G$107,7,FALSE),IF(A94=\"B\",+VLOOKUP(B94,QUEST_B!$A$16:$G$78,7,FALSE),IF(A94=\"C\",+VLOOKUP(B94,QUEST_C!$A$16:$G$51,7,FALSE),\"\")))","v":""}]
[null,null,null,null,null,null,null,null,null,null,null,null,null,{"$f":"IF(A95=\"A\",+VLOOKUP(B95,QUEST_A!$A$16:$G$107,7,FALSE),IF(A95=\"B\",+VLOOKUP(B95,QUEST_B!$A$16:$G$78,7,FALSE),IF(A95=\"C\",+VLOOKUP(B95,QUEST_C!$A$16:$G$51,7,FALSE),\"\")))","v":""}]
[null,null,null,null,null,null,null,null,null,null,null,null,null,{"$f":"IF(A96=\"A\",+VLOOKUP(B96,QUEST_A!$A$16:$G$107,7,FALSE),IF(A96=\"B\",+VLOOKUP(B96,QUEST_B!$A$16:$G$78,7,FALSE),IF(A96=\"C\",+VLOOKUP(B96,QUEST_C!$A$16:$G$51,7,FALSE),\"\")))","v":""}]
[null,null,null,null,null,null,null,null,null,null,null,null,null,{"$f":"IF(A97=\"A\",+VLOOKUP(B97,QUEST_A!$A$16:$G$107,7,FALSE),IF(A97=\"B\",+VLOOKUP(B97,QUEST_B!$A$16:$G$78,7,FALSE),IF(A97=\"C\",+VLOOKUP(B97,QUEST_C!$A$16:$G$51,7,FALSE),\"\")))","v":""}]
[null,null,null,null,null,null,null,null,null,null,null,null,null,{"$f":"IF(A98=\"A\",+VLOOKUP(B98,QUEST_A!$A$16:$G$107,7,FALSE),IF(A98=\"B\",+VLOOKUP(B98,QUEST_B!$A$16:$G$78,7,FALSE),IF(A98=\"C\",+VLOOKUP(B98,QUEST_C!$A$16:$G$51,7,FALSE),\"\")))","v":""}]
[null,null,null,null,null,null,null,null,null,null,null,null,null,{"$f":"IF(A99=\"A\",+VLOOKUP(B99,QUEST_A!$A$16:$G$107,7,FALSE),IF(A99=\"B\",+VLOOKUP(B99,QUEST_B!$A$16:$G$78,7,FALSE),IF(A99=\"C\",+VLOOKUP(B99,QUEST_C!$A$16:$G$51,7,FALSE),\"\")))","v":""}]
[null,null,null,null,null,null,null,null,null,null,null,null,null,{"$f":"IF(A100=\"A\",+VLOOKUP(B100,QUEST_A!$A$16:$G$107,7,FALSE),IF(A100=\"B\",+VLOOKUP(B100,QUEST_B!$A$16:$G$78,7,FALSE),IF(A100=\"C\",+VLOOKUP(B100,QUEST_C!$A$16:$G$51,7,FALSE),\"\")))","v":""}]
[null,null,null,null,null,null,null,null,null,null,null,null,null,{"$f":"IF(A101=\"A\",+VLOOKUP(B101,QUEST_A!$A$16:$G$107,7,FALSE),IF(A101=\"B\",+VLOOKUP(B101,QUEST_B!$A$16:$G$78,7,FALSE),IF(A101=\"C\",+VLOOKUP(B101,QUEST_C!$A$16:$G$51,7,FALSE),\"\")))","v":""}]
[null,null,null,null,null,null,null,null,null,null,null,null,null,{"$f":"IF(A102=\"A\",+VLOOKUP(B102,QUEST_A!$A$16:$G$107,7,FALSE),IF(A102=\"B\",+VLOOKUP(B102,QUEST_B!$A$16:$G$78,7,FALSE),IF(A102=\"C\",+VLOOKUP(B102,QUEST_C!$A$16:$G$51,7,FALSE),\"\")))","v":""}]
[null,null,null,null,null,null,null,null,null,null,null,null,null,{"$f":"IF(A103=\"A\",+VLOOKUP(B103,QUEST_A!$A$16:$G$107,7,FALSE),IF(A103=\"B\",+VLOOKUP(B103,QUEST_B!$A$16:$G$78,7,FALSE),IF(A103=\"C\",+VLOOKUP(B103,QUEST_C!$A$16:$G$51,7,FALSE),\"\")))","v":""}]
[null,null,null,null,null,null,null,null,null,null,null,null,null,{"$f":"IF(A104=\"A\",+VLOOKUP(B104,QUEST_A!$A$16:$G$107,7,FALSE),IF(A104=\"B\",+VLOOKUP(B104,QUEST_B!$A$16:$G$78,7,FALSE),IF(A104=\"C\",+VLOOKUP(B104,QUEST_C!$A$16:$G$51,7,FALSE),\"\")))","v":""}]
[null,null,null,null,null,null,null,null,null,null,null,null,null,{"$f":"IF(A105=\"A\",+VLOOKUP(B105,QUEST_A!$A$16:$G$107,7,FALSE),IF(A105=\"B\",+VLOOKUP(B105,QUEST_B!$A$16:$G$78,7,FALSE),IF(A105=\"C\",+VLOOKUP(B105,QUEST_C!$A$16:$G$51,7,FALSE),\"\")))","v":""}]
[null,null,null,null,null,null,null,null,null,null,null,null,null,{"$f":"IF(A106=\"A\",+VLOOKUP(B106,QUEST_A!$A$16:$G$107,7,FALSE),IF(A106=\"B\",+VLOOKUP(B106,QUEST_B!$A$16:$G$78,7,FALSE),IF(A106=\"C\",+VLOOKUP(B106,QUEST_C!$A$16:$G$51,7,FALSE),\"\")))","v":""}]
[null,null,null,null,null,null,null,null,null,null,null,null,null,{"$f":"IF(A107=\"A\",+VLOOKUP(B107,QUEST_A!$A$16:$G$107,7,FALSE),IF(A107=\"B\",+VLOOKUP(B107,QUEST_B!$A$16:$G$78,7,FALSE),IF(A107=\"C\",+VLOOKUP(B107,QUEST_C!$A$16:$G$51,7,FALSE),\"\")))","v":""}]
[null,null,null,null,null,null,null,null,null,null,null,null,null,{"$f":"IF(A108=\"A\",+VLOOKUP(B108,QUEST_A!$A$16:$G$107,7,FALSE),IF(A108=\"B\",+VLOOKUP(B108,QUEST_B!$A$16:$G$78,7,FALSE),IF(A108=\"C\",+VLOOKUP(B108,QUEST_C!$A$16:$G$51,7,FALSE),\"\")))","v":""}]
[null,null,null,null,null,null,null,null,null,null,null,null,null,{"$f":"IF(A109=\"A\",+VLOOKUP(B109,QUEST_A!$A$16:$G$107,7,FALSE),IF(A109=\"B\",+VLOOKUP(B109,QUEST_B!$A$16:$G$78,7,FALSE),IF(A109=\"C\",+VLOOKUP(B109,QUEST_C!$A$16:$G$51,7,FALSE),\"\")))","v":""}]
[null,null,null,null,null,null,null,null,null,null,null,null,null,{"$f":"IF(A110=\"A\",+VLOOKUP(B110,QUEST_A!$A$16:$G$107,7,FALSE),IF(A110=\"B\",+VLOOKUP(B110,QUEST_B!$A$16:$G$78,7,FALSE),IF(A110=\"C\",+VLOOKUP(B110,QUEST_C!$A$16:$G$51,7,FALSE),\"\")))","v":""}]
[null,null,null,null,null,null,null,null,null,null,null,null,null,{"$f":"IF(A111=\"A\",+VLOOKUP(B111,QUEST_A!$A$16:$G$107,7,FALSE),IF(A111=\"B\",+VLOOKUP(B111,QUEST_B!$A$16:$G$78,7,FALSE),IF(A111=\"C\",+VLOOKUP(B111,QUEST_C!$A$16:$G$51,7,FALSE),\"\")))","v":""}]
[null,null,null,null,null,null,null,null,null,null,null,null,null,{"$f":"IF(A112=\"A\",+VLOOKUP(B112,QUEST_A!$A$16:$G$107,7,FALSE),IF(A112=\"B\",+VLOOKUP(B112,QUEST_B!$A$16:$G$78,7,FALSE),IF(A112=\"C\",+VLOOKUP(B112,QUEST_C!$A$16:$G$51,7,FALSE),\"\")))","v":""}]
[null,null,null,null,null,null,null,null,null,null,null,null,null,{"$f":"IF(A113=\"A\",+VLOOKUP(B113,QUEST_A!$A$16:$G$107,7,FALSE),IF(A113=\"B\",+VLOOKUP(B113,QUEST_B!$A$16:$G$78,7,FALSE),IF(A113=\"C\",+VLOOKUP(B113,QUEST_C!$A$16:$G$51,7,FALSE),\"\")))","v":""}]
[null,null,null,null,null,null,null,null,null,null,null,null,null,{"$f":"IF(A114=\"A\",+VLOOKUP(B114,QUEST_A!$A$16:$G$107,7,FALSE),IF(A114=\"B\",+VLOOKUP(B114,QUEST_B!$A$16:$G$78,7,FALSE),IF(A114=\"C\",+VLOOKUP(B114,QUEST_C!$A$16:$G$51,7,FALSE),\"\")))","v":""}]
[null,null,null,null,null,null,null,null,null,null,null,null,null,{"$f":"IF(A115=\"A\",+VLOOKUP(B115,QUEST_A!$A$16:$G$107,7,FALSE),IF(A115=\"B\",+VLOOKUP(B115,QUEST_B!$A$16:$G$78,7,FALSE),IF(A115=\"C\",+VLOOKUP(B115,QUEST_C!$A$16:$G$51,7,FALSE),\"\")))","v":""}]
[null,null,null,null,null,null,null,null,null,null,null,null,null,{"$f":"IF(A116=\"A\",+VLOOKUP(B116,QUEST_A!$A$16:$G$107,7,FALSE),IF(A116=\"B\",+VLOOKUP(B116,QUEST_B!$A$16:$G$78,7,FALSE),IF(A116=\"C\",+VLOOKUP(B116,QUEST_C!$A$16:$G$51,7,FALSE),\"\")))","v":""}]
[null,null,null,null,null,null,null,null,null,null,null,null,null,{"$f":"IF(A117=\"A\",+VLOOKUP(B117,QUEST_A!$A$16:$G$107,7,FALSE),IF(A117=\"B\",+VLOOKUP(B117,QUEST_B!$A$16:$G$78,7,FALSE),IF(A117=\"C\",+VLOOKUP(B117,QUEST_C!$A$16:$G$51,7,FALSE),\"\")))","v":""}]
[null,null,null,null,null,null,null,null,null,null,null,null,null,{"$f":"IF(A118=\"A\",+VLOOKUP(B118,QUEST_A!$A$16:$G$107,7,FALSE),IF(A118=\"B\",+VLOOKUP(B118,QUEST_B!$A$16:$G$78,7,FALSE),IF(A118=\"C\",+VLOOKUP(B118,QUEST_C!$A$16:$G$51,7,FALSE),\"\")))","v":""}]
[null,null,null,null,null,null,null,null,null,null,null,null,null,{"$f":"IF(A119=\"A\",+VLOOKUP(B119,QUEST_A!$A$16:$G$107,7,FALSE),IF(A119=\"B\",+VLOOKUP(B119,QUEST_B!$A$16:$G$78,7,FALSE),IF(A119=\"C\",+VLOOKUP(B119,QUEST_C!$A$16:$G$51,7,FALSE),\"\")))","v":""}]
[null,null,null,null,null,null,null,null,null,null,null,null,null,{"$f":"IF(A120=\"A\",+VLOOKUP(B120,QUEST_A!$A$16:$G$107,7,FALSE),IF(A120=\"B\",+VLOOKUP(B120,QUEST_B!$A$16:$G$78,7,FALSE),IF(A120=\"C\",+VLOOKUP(B120,QUEST_C!$A$16:$G$51,7,FALSE),\"\")))","v":""}]
[null,null,null,null,null,null,null,null,null,null,null,null,null,{"$f":"IF(A121=\"A\",+VLOOKUP(B121,QUEST_A!$A$16:$G$107,7,FALSE),IF(A121=\"B\",+VLOOKUP(B121,QUEST_B!$A$16:$G$78,7,FALSE),IF(A121=\"C\",+VLOOKUP(B121,QUEST_C!$A$16:$G$51,7,FALSE),\"\")))","v":""}]
[null,null,null,null,null,null,null,null,null,null,null,null,null,{"$f":"IF(A122=\"A\",+VLOOKUP(B122,QUEST_A!$A$16:$G$107,7,FALSE),IF(A122=\"B\",+VLOOKUP(B122,QUEST_B!$A$16:$G$78,7,FALSE),IF(A122=\"C\",+VLOOKUP(B122,QUEST_C!$A$16:$G$51,7,FALSE),\"\")))","v":""}]
[null,null,null,null,null,null,null,null,null,null,null,null,null,{"$f":"IF(A123=\"A\",+VLOOKUP(B123,QUEST_A!$A$16:$G$107,7,FALSE),IF(A123=\"B\",+VLOOKUP(B123,QUEST_B!$A$16:$G$78,7,FALSE),IF(A123=\"C\",+VLOOKUP(B123,QUEST_C!$A$16:$G$51,7,FALSE),\"\")))","v":""}]
[null,null,null,null,null,null,null,null,null,null,null,null,null,{"$f":"IF(A124=\"A\",+VLOOKUP(B124,QUEST_A!$A$16:$G$107,7,FALSE),IF(A124=\"B\",+VLOOKUP(B124,QUEST_B!$A$16:$G$78,7,FALSE),IF(A124=\"C\",+VLOOKUP(B124,QUEST_C!$A$16:$G$51,7,FALSE),\"\")))","v":""}]
[null,null,null,null,null,null,null,null,null,null,null,null,null,{"$f":"IF(A125=\"A\",+VLOOKUP(B125,QUEST_A!$A$16:$G$107,7,FALSE),IF(A125=\"B\",+VLOOKUP(B125,QUEST_B!$A$16:$G$78,7,FALSE),IF(A125=\"C\",+VLOOKUP(B125,QUEST_C!$A$16:$G$51,7,FALSE),\"\")))","v":""}]
[null,null,null,null,null,null,null,null,null,null,null,null,null,{"$f":"IF(A126=\"A\",+VLOOKUP(B126,QUEST_A!$A$16:$G$107,7,FALSE),IF(A126=\"B\",+VLOOKUP(B126,QUEST_B!$A$16:$G$78,7,FALSE),IF(A126=\"C\",+VLOOKUP(B126,QUEST_C!$A$16:$G$51,7,FALSE),\"\")))","v":""}]
[null,null,null,null,null,null,null,null,null,null,null,null,null,{"$f":"IF(A127=\"A\",+VLOOKUP(B127,QUEST_A!$A$16:$G$107,7,FALSE),IF(A127=\"B\",+VLOOKUP(B127,QUEST_B!$A$16:$G$78,7,FALSE),IF(A127=\"C\",+VLOOKUP(B127,QUEST_C!$A$16:$G$51,7,FALSE),\"\")))","v":""}]
[null,null,null,null,null,null,null,null,null,null,null,null,null,{"$f":"IF(A128=\"A\",+VLOOKUP(B128,QUEST_A!$A$16:$G$107,7,FALSE),IF(A128=\"B\",+VLOOKUP(B128,QUEST_B!$A$16:$G$78,7,FALSE),IF(A128=\"C\",+VLOOKUP(B128,QUEST_C!$A$16:$G$51,7,FALSE),\"\")))","v":""}]
[null,null,null,null,null,null,null,null,null,null,null,null,null,{"$f":"IF(A129=\"A\",+VLOOKUP(B129,QUEST_A!$A$16:$G$107,7,FALSE),IF(A129=\"B\",+VLOOKUP(B129,QUEST_B!$A$16:$G$78,7,FALSE),IF(A129=\"C\",+VLOOKUP(B129,QUEST_C!$A$16:$G$51,7,FALSE),\"\")))","v":""}]
[null,null,null,null,null,null,null,null,null,null,null,null,null,{"$f":"IF(A130=\"A\",+VLOOKUP(B130,QUEST_A!$A$16:$G$107,7,FALSE),IF(A130=\"B\",+VLOOKUP(B130,QUEST_B!$A$16:$G$78,7,FALSE),IF(A130=\"C\",+VLOOKUP(B130,QUEST_C!$A$16:$G$51,7,FALSE),\"\")))","v":""}]
[null,null,null,null,null,null,null,null,null,null,null,null,null,{"$f":"IF(A131=\"A\",+VLOOKUP(B131,QUEST_A!$A$16:$G$107,7,FALSE),IF(A131=\"B\",+VLOOKUP(B131,QUEST_B!$A$16:$G$78,7,FALSE),IF(A131=\"C\",+VLOOKUP(B131,QUEST_C!$A$16:$G$51,7,FALSE),\"\")))","v":""}]
[null,null,null,null,null,null,null,null,null,null,null,null,null,{"$f":"IF(A132=\"A\",+VLOOKUP(B132,QUEST_A!$A$16:$G$107,7,FALSE),IF(A132=\"B\",+VLOOKUP(B132,QUEST_B!$A$16:$G$78,7,FALSE),IF(A132=\"C\",+VLOOKUP(B132,QUEST_C!$A$16:$G$51,7,FALSE),\"\")))","v":""}]
[null,null,null,null,null,null,null,null,null,null,null,null,null,{"$f":"IF(A133=\"A\",+VLOOKUP(B133,QUEST_A!$A$16:$G$107,7,FALSE),IF(A133=\"B\",+VLOOKUP(B133,QUEST_B!$A$16:$G$78,7,FALSE),IF(A133=\"C\",+VLOOKUP(B133,QUEST_C!$A$16:$G$51,7,FALSE),\"\")))","v":""}]
[null,null,null,null,null,null,null,null,null,null,null,null,null,{"$f":"IF(A134=\"A\",+VLOOKUP(B134,QUEST_A!$A$16:$G$107,7,FALSE),IF(A134=\"B\",+VLOOKUP(B134,QUEST_B!$A$16:$G$78,7,FALSE),IF(A134=\"C\",+VLOOKUP(B134,QUEST_C!$A$16:$G$51,7,FALSE),\"\")))","v":""}]
[null,null,null,null,null,null,null,null,null,null,null,null,null,{"$f":"IF(A135=\"A\",+VLOOKUP(B135,QUEST_A!$A$16:$G$107,7,FALSE),IF(A135=\"B\",+VLOOKUP(B135,QUEST_B!$A$16:$G$78,7,FALSE),IF(A135=\"C\",+VLOOKUP(B135,QUEST_C!$A$16:$G$51,7,FALSE),\"\")))","v":""}]
[null,null,null,null,null,null,null,null,null,null,null,null,null,{"$f":"IF(A136=\"A\",+VLOOKUP(B136,QUEST_A!$A$16:$G$107,7,FALSE),IF(A136=\"B\",+VLOOKUP(B136,QUEST_B!$A$16:$G$78,7,FALSE),IF(A136=\"C\",+VLOOKUP(B136,QUEST_C!$A$16:$G$51,7,FALSE),\"\")))","v":""}]
[null,null,null,null,null,null,null,null,null,null,null,null,null,{"$f":"IF(A137=\"A\",+VLOOKUP(B137,QUEST_A!$A$16:$G$107,7,FALSE),IF(A137=\"B\",+VLOOKUP(B137,QUEST_B!$A$16:$G$78,7,FALSE),IF(A137=\"C\",+VLOOKUP(B137,QUEST_C!$A$16:$G$51,7,FALSE),\"\")))","v":""}]
[null,null,null,null,null,null,null,null,null,null,null,null,null,{"$f":"IF(A138=\"A\",+VLOOKUP(B138,QUEST_A!$A$16:$G$107,7,FALSE),IF(A138=\"B\",+VLOOKUP(B138,QUEST_B!$A$16:$G$78,7,FALSE),IF(A138=\"C\",+VLOOKUP(B138,QUEST_C!$A$16:$G$51,7,FALSE),\"\")))","v":""}]
[null,null,null,null,null,null,null,null,null,null,null,null,null,{"$f":"IF(A139=\"A\",+VLOOKUP(B139,QUEST_A!$A$16:$G$107,7,FALSE),IF(A139=\"B\",+VLOOKUP(B139,QUEST_B!$A$16:$G$78,7,FALSE),IF(A139=\"C\",+VLOOKUP(B139,QUEST_C!$A$16:$G$51,7,FALSE),\"\")))","v":""}]
[null,null,null,null,null,null,null,null,null,null,null,null,null,{"$f":"IF(A140=\"A\",+VLOOKUP(B140,QUEST_A!$A$16:$G$107,7,FALSE),IF(A140=\"B\",+VLOOKUP(B140,QUEST_B!$A$16:$G$78,7,FALSE),IF(A140=\"C\",+VLOOKUP(B140,QUEST_C!$A$16:$G$51,7,FALSE),\"\")))","v":""}]
[null,null,null,null,null,null,null,null,null,null,null,null,null,{"$f":"IF(A141=\"A\",+VLOOKUP(B141,QUEST_A!$A$16:$G$107,7,FALSE),IF(A141=\"B\",+VLOOKUP(B141,QUEST_B!$A$16:$G$78,7,FALSE),IF(A141=\"C\",+VLOOKUP(B141,QUEST_C!$A$16:$G$51,7,FALSE),\"\")))","v":""}]
[null,null,null,null,null,null,null,null,null,null,null,null,null,{"$f":"IF(A142=\"A\",+VLOOKUP(B142,QUEST_A!$A$16:$G$107,7,FALSE),IF(A142=\"B\",+VLOOKUP(B142,QUEST_B!$A$16:$G$78,7,FALSE),IF(A142=\"C\",+VLOOKUP(B142,QUEST_C!$A$16:$G$51,7,FALSE),\"\")))","v":""}]
[null,null,null,null,null,null,null,null,null,null,null,null,null,{"$f":"IF(A143=\"A\",+VLOOKUP(B143,QUEST_A!$A$16:$G$107,7,FALSE),IF(A143=\"B\",+VLOOKUP(B143,QUEST_B!$A$16:$G$78,7,FALSE),IF(A143=\"C\",+VLOOKUP(B143,QUEST_C!$A$16:$G$51,7,FALSE),\"\")))","v":""}]
[null,null,null,null,null,null,null,null,null,null,null,null,null,{"$f":"IF(A144=\"A\",+VLOOKUP(B144,QUEST_A!$A$16:$G$107,7,FALSE),IF(A144=\"B\",+VLOOKUP(B144,QUEST_B!$A$16:$G$78,7,FALSE),IF(A144=\"C\",+VLOOKUP(B144,QUEST_C!$A$16:$G$51,7,FALSE),\"\")))","v":""}]
[null,null,null,null,null,null,null,null,null,null,null,null,null,{"$f":"IF(A145=\"A\",+VLOOKUP(B145,QUEST_A!$A$16:$G$107,7,FALSE),IF(A145=\"B\",+VLOOKUP(B145,QUEST_B!$A$16:$G$78,7,FALSE),IF(A145=\"C\",+VLOOKUP(B145,QUEST_C!$A$16:$G$51,7,FALSE),\"\")))","v":""}]
[null,null,null,null,null,null,null,null,null,null,null,null,null,{"$f":"IF(A146=\"A\",+VLOOKUP(B146,QUEST_A!$A$16:$G$107,7,FALSE),IF(A146=\"B\",+VLOOKUP(B146,QUEST_B!$A$16:$G$78,7,FALSE),IF(A146=\"C\",+VLOOKUP(B146,QUEST_C!$A$16:$G$51,7,FALSE),\"\")))","v":""}]
[null,null,null,null,null,null,null,null,null,null,null,null,null,{"$f":"IF(A147=\"A\",+VLOOKUP(B147,QUEST_A!$A$16:$G$107,7,FALSE),IF(A147=\"B\",+VLOOKUP(B147,QUEST_B!$A$16:$G$78,7,FALSE),IF(A147=\"C\",+VLOOKUP(B147,QUEST_C!$A$16:$G$51,7,FALSE),\"\")))","v":""}]
[null,null,null,null,null,null,null,null,null,null,null,null,null,{"$f":"IF(A148=\"A\",+VLOOKUP(B148,QUEST_A!$A$16:$G$107,7,FALSE),IF(A148=\"B\",+VLOOKUP(B148,QUEST_B!$A$16:$G$78,7,FALSE),IF(A148=\"C\",+VLOOKUP(B148,QUEST_C!$A$16:$G$51,7,FALSE),\"\")))","v":""}]
[null,null,null,null,null,null,null,null,null,null,null,null,null,{"$f":"IF(A149=\"A\",+VLOOKUP(B149,QUEST_A!$A$16:$G$107,7,FALSE),IF(A149=\"B\",+VLOOKUP(B149,QUEST_B!$A$16:$G$78,7,FALSE),IF(A149=\"C\",+VLOOKUP(B149,QUEST_C!$A$16:$G$51,7,FALSE),\"\")))","v":""}]
[null,null,null,null,null,null,null,null,null,null,null,null,null,{"$f":"IF(A150=\"A\",+VLOOKUP(B150,QUEST_A!$A$16:$G$107,7,FALSE),IF(A150=\"B\",+VLOOKUP(B150,QUEST_B!$A$16:$G$78,7,FALSE),IF(A150=\"C\",+VLOOKUP(B150,QUEST_C!$A$16:$G$51,7,FALSE),\"\")))","v":""}]
[null,null,null,null,null,null,null,null,null,null,null,null,null,{"$f":"IF(A151=\"A\",+VLOOKUP(B151,QUEST_A!$A$16:$G$107,7,FALSE),IF(A151=\"B\",+VLOOKUP(B151,QUEST_B!$A$16:$G$78,7,FALSE),IF(A151=\"C\",+VLOOKUP(B151,QUEST_C!$A$16:$G$51,7,FALSE),\"\")))","v":""}]
[null,null,null,null,null,null,null,null,null,null,null,null,null,{"$f":"IF(A152=\"A\",+VLOOKUP(B152,QUEST_A!$A$16:$G$107,7,FALSE),IF(A152=\"B\",+VLOOKUP(B152,QUEST_B!$A$16:$G$78,7,FALSE),IF(A152=\"C\",+VLOOKUP(B152,QUEST_C!$A$16:$G$51,7,FALSE),\"\")))","v":""}]
[null,null,null,null,null,null,null,null,null,null,null,null,null,{"$f":"IF(A153=\"A\",+VLOOKUP(B153,QUEST_A!$A$16:$G$107,7,FALSE),IF(A153=\"B\",+VLOOKUP(B153,QUEST_B!$A$16:$G$78,7,FALSE),IF(A153=\"C\",+VLOOKUP(B153,QUEST_C!$A$16:$G$51,7,FALSE),\"\")))","v":""}]
[null,null,null,null,null,null,null,null,null,null,null,null,null,{"$f":"IF(A154=\"A\",+VLOOKUP(B154,QUEST_A!$A$16:$G$107,7,FALSE),IF(A154=\"B\",+VLOOKUP(B154,QUEST_B!$A$16:$G$78,7,FALSE),IF(A154=\"C\",+VLOOKUP(B154,QUEST_C!$A$16:$G$51,7,FALSE),\"\")))","v":""}]
[null,null,null,null,null,null,null,null,null,null,null,null,null,{"$f":"IF(A155=\"A\",+VLOOKUP(B155,QUEST_A!$A$16:$G$107,7,FALSE),IF(A155=\"B\",+VLOOKUP(B155,QUEST_B!$A$16:$G$78,7,FALSE),IF(A155=\"C\",+VLOOKUP(B155,QUEST_C!$A$16:$G$51,7,FALSE),\"\")))","v":""}]
[null,null,null,null,null,null,null,null,null,null,null,null,null,{"$f":"IF(A156=\"A\",+VLOOKUP(B156,QUEST_A!$A$16:$G$107,7,FALSE),IF(A156=\"B\",+VLOOKUP(B156,QUEST_B!$A$16:$G$78,7,FALSE),IF(A156=\"C\",+VLOOKUP(B156,QUEST_C!$A$16:$G$51,7,FALSE),\"\")))","v":""}]
[null,null,null,null,null,null,null,null,null,null,null,null,null,{"$f":"IF(A157=\"A\",+VLOOKUP(B157,QUEST_A!$A$16:$G$107,7,FALSE),IF(A157=\"B\",+VLOOKUP(B157,QUEST_B!$A$16:$G$78,7,FALSE),IF(A157=\"C\",+VLOOKUP(B157,QUEST_C!$A$16:$G$51,7,FALSE),\"\")))","v":""}]
[null,null,null,null,null,null,null,null,null,null,null,null,null,{"$f":"IF(A158=\"A\",+VLOOKUP(B158,QUEST_A!$A$16:$G$107,7,FALSE),IF(A158=\"B\",+VLOOKUP(B158,QUEST_B!$A$16:$G$78,7,FALSE),IF(A158=\"C\",+VLOOKUP(B158,QUEST_C!$A$16:$G$51,7,FALSE),\"\")))","v":""}]
[null,null,null,null,null,null,null,null,null,null,null,null,null,{"$f":"IF(A159=\"A\",+VLOOKUP(B159,QUEST_A!$A$16:$G$107,7,FALSE),IF(A159=\"B\",+VLOOKUP(B159,QUEST_B!$A$16:$G$78,7,FALSE),IF(A159=\"C\",+VLOOKUP(B159,QUEST_C!$A$16:$G$51,7,FALSE),\"\")))","v":""}]
[null,null,null,null,null,null,null,null,null,null,null,null,null,{"$f":"IF(A160=\"A\",+VLOOKUP(B160,QUEST_A!$A$16:$G$107,7,FALSE),IF(A160=\"B\",+VLOOKUP(B160,QUEST_B!$A$16:$G$78,7,FALSE),IF(A160=\"C\",+VLOOKUP(B160,QUEST_C!$A$16:$G$51,7,FALSE),\"\")))","v":""}]
[null,null,null,null,null,null,null,null,null,null,null,null,null,{"$f":"IF(A161=\"A\",+VLOOKUP(B161,QUEST_A!$A$16:$G$107,7,FALSE),IF(A161=\"B\",+VLOOKUP(B161,QUEST_B!$A$16:$G$78,7,FALSE),IF(A161=\"C\",+VLOOKUP(B161,QUEST_C!$A$16:$G$51,7,FALSE),\"\")))","v":""}]
[null,null,null,null,null,null,null,null,null,null,null,null,null,{"$f":"IF(A162=\"A\",+VLOOKUP(B162,QUEST_A!$A$16:$G$107,7,FALSE),IF(A162=\"B\",+VLOOKUP(B162,QUEST_B!$A$16:$G$78,7,FALSE),IF(A162=\"C\",+VLOOKUP(B162,QUEST_C!$A$16:$G$51,7,FALSE),\"\")))","v":""}]
[null,null,null,null,null,null,null,null,null,null,null,null,null,{"$f":"IF(A163=\"A\",+VLOOKUP(B163,QUEST_A!$A$16:$G$107,7,FALSE),IF(A163=\"B\",+VLOOKUP(B163,QUEST_B!$A$16:$G$78,7,FALSE),IF(A163=\"C\",+VLOOKUP(B163,QUEST_C!$A$16:$G$51,7,FALSE),\"\")))","v":""}]
[null,null,null,null,null,null,null,null,null,null,null,null,null,{"$f":"IF(A164=\"A\",+VLOOKUP(B164,QUEST_A!$A$16:$G$107,7,FALSE),IF(A164=\"B\",+VLOOKUP(B164,QUEST_B!$A$16:$G$78,7,FALSE),IF(A164=\"C\",+VLOOKUP(B164,QUEST_C!$A$16:$G$51,7,FALSE),\"\")))","v":""}]
[null,null,null,null,null,null,null,null,null,null,null,null,null,{"$f":"IF(A165=\"A\",+VLOOKUP(B165,QUEST_A!$A$16:$G$107,7,FALSE),IF(A165=\"B\",+VLOOKUP(B165,QUEST_B!$A$16:$G$78,7,FALSE),IF(A165=\"C\",+VLOOKUP(B165,QUEST_C!$A$16:$G$51,7,FALSE),\"\")))","v":""}]
[null,null,null,null,null,null,null,null,null,null,null,null,null,{"$f":"IF(A166=\"A\",+VLOOKUP(B166,QUEST_A!$A$16:$G$107,7,FALSE),IF(A166=\"B\",+VLOOKUP(B166,QUEST_B!$A$16:$G$78,7,FALSE),IF(A166=\"C\",+VLOOKUP(B166,QUEST_C!$A$16:$G$51,7,FALSE),\"\")))","v":""}]
[null,null,null,null,null,null,null,null,null,null,null,null,null,{"$f":"IF(A167=\"A\",+VLOOKUP(B167,QUEST_A!$A$16:$G$107,7,FALSE),IF(A167=\"B\",+VLOOKUP(B167,QUEST_B!$A$16:$G$78,7,FALSE),IF(A167=\"C\",+VLOOKUP(B167,QUEST_C!$A$16:$G$51,7,FALSE),\"\")))","v":""}]
[null,null,null,null,null,null,null,null,null,null,null,null,null,{"$f":"IF(A168=\"A\",+VLOOKUP(B168,QUEST_A!$A$16:$G$107,7,FALSE),IF(A168=\"B\",+VLOOKUP(B168,QUEST_B!$A$16:$G$78,7,FALSE),IF(A168=\"C\",+VLOOKUP(B168,QUEST_C!$A$16:$G$51,7,FALSE),\"\")))","v":""}]
[null,null,null,null,null,null,null,null,null,null,null,null,null,{"$f":"IF(A169=\"A\",+VLOOKUP(B169,QUEST_A!$A$16:$G$107,7,FALSE),IF(A169=\"B\",+VLOOKUP(B169,QUEST_B!$A$16:$G$78,7,FALSE),IF(A169=\"C\",+VLOOKUP(B169,QUEST_C!$A$16:$G$51,7,FALSE),\"\")))","v":""}]
[null,null,null,null,null,null,null,null,null,null,null,null,null,{"$f":"IF(A170=\"A\",+VLOOKUP(B170,QUEST_A!$A$16:$G$107,7,FALSE),IF(A170=\"B\",+VLOOKUP(B170,QUEST_B!$A$16:$G$78,7,FALSE),IF(A170=\"C\",+VLOOKUP(B170,QUEST_C!$A$16:$G$51,7,FALSE),\"\")))","v":""}]
[null,null,null,null,null,null,null,null,null,null,null,null,null,{"$f":"IF(A171=\"A\",+VLOOKUP(B171,QUEST_A!$A$16:$G$107,7,FALSE),IF(A171=\"B\",+VLOOKUP(B171,QUEST_B!$A$16:$G$78,7,FALSE),IF(A171=\"C\",+VLOOKUP(B171,QUEST_C!$A$16:$G$51,7,FALSE),\"\")))","v":""}]
[null,null,null,null,null,null,null,null,null,null,null,null,null,{"$f":"IF(A172=\"A\",+VLOOKUP(B172,QUEST_A!$A$16:$G$107,7,FALSE),IF(A172=\"B\",+VLOOKUP(B172,QUEST_B!$A$16:$G$78,7,FALSE),IF(A172=\"C\",+VLOOKUP(B172,QUEST_C!$A$16:$G$51,7,FALSE),\"\")))","v":""}]
[null,null,null,null,null,null,null,null,null,null,null,null,null,{"$f":"IF(A173=\"A\",+VLOOKUP(B173,QUEST_A!$A$16:$G$107,7,FALSE),IF(A173=\"B\",+VLOOKUP(B173,QUEST_B!$A$16:$G$78,7,FALSE),IF(A173=\"C\",+VLOOKUP(B173,QUEST_C!$A$16:$G$51,7,FALSE),\"\")))","v":""}]
[null,null,null,null,null,null,null,null,null,null,null,null,null,{"$f":"IF(A174=\"A\",+VLOOKUP(B174,QUEST_A!$A$16:$G$107,7,FALSE),IF(A174=\"B\",+VLOOKUP(B174,QUEST_B!$A$16:$G$78,7,FALSE),IF(A174=\"C\",+VLOOKUP(B174,QUEST_C!$A$16:$G$51,7,FALSE),\"\")))","v":""}]
[null,null,null,null,null,null,null,null,null,null,null,null,null,{"$f":"IF(A175=\"A\",+VLOOKUP(B175,QUEST_A!$A$16:$G$107,7,FALSE),IF(A175=\"B\",+VLOOKUP(B175,QUEST_B!$A$16:$G$78,7,FALSE),IF(A175=\"C\",+VLOOKUP(B175,QUEST_C!$A$16:$G$51,7,FALSE),\"\")))","v":""}]
[null,null,null,null,null,null,null,null,null,null,null,null,null,{"$f":"IF(A176=\"A\",+VLOOKUP(B176,QUEST_A!$A$16:$G$107,7,FALSE),IF(A176=\"B\",+VLOOKUP(B176,QUEST_B!$A$16:$G$78,7,FALSE),IF(A176=\"C\",+VLOOKUP(B176,QUEST_C!$A$16:$G$51,7,FALSE),\"\")))","v":""}]
[null,null,null,null,null,null,null,null,null,null,null,null,null,{"$f":"IF(A177=\"A\",+VLOOKUP(B177,QUEST_A!$A$16:$G$107,7,FALSE),IF(A177=\"B\",+VLOOKUP(B177,QUEST_B!$A$16:$G$78,7,FALSE),IF(A177=\"C\",+VLOOKUP(B177,QUEST_C!$A$16:$G$51,7,FALSE),\"\")))","v":""}]
[null,null,null,null,null,null,null,null,null,null,null,null,null,{"$f":"IF(A178=\"A\",+VLOOKUP(B178,QUEST_A!$A$16:$G$107,7,FALSE),IF(A178=\"B\",+VLOOKUP(B178,QUEST_B!$A$16:$G$78,7,FALSE),IF(A178=\"C\",+VLOOKUP(B178,QUEST_C!$A$16:$G$51,7,FALSE),\"\")))","v":""}]
[null,null,null,null,null,null,null,null,null,null,null,null,null,{"$f":"IF(A179=\"A\",+VLOOKUP(B179,QUEST_A!$A$16:$G$107,7,FALSE),IF(A179=\"B\",+VLOOKUP(B179,QUEST_B!$A$16:$G$78,7,FALSE),IF(A179=\"C\",+VLOOKUP(B179,QUEST_C!$A$16:$G$51,7,FALSE),\"\")))","v":""}]
[null,null,null,null,null,null,null,null,null,null,null,null,null,{"$f":"IF(A180=\"A\",+VLOOKUP(B180,QUEST_A!$A$16:$G$107,7,FALSE),IF(A180=\"B\",+VLOOKUP(B180,QUEST_B!$A$16:$G$78,7,FALSE),IF(A180=\"C\",+VLOOKUP(B180,QUEST_C!$A$16:$G$51,7,FALSE),\"\")))","v":""}]
[null,null,null,null,null,null,null,null,null,null,null,null,null,{"$f":"IF(A181=\"A\",+VLOOKUP(B181,QUEST_A!$A$16:$G$107,7,FALSE),IF(A181=\"B\",+VLOOKUP(B181,QUEST_B!$A$16:$G$78,7,FALSE),IF(A181=\"C\",+VLOOKUP(B181,QUEST_C!$A$16:$G$51,7,FALSE),\"\")))","v":""}]
[null,null,null,null,null,null,null,null,null,null,null,null,null,{"$f":"IF(A182=\"A\",+VLOOKUP(B182,QUEST_A!$A$16:$G$107,7,FALSE),IF(A182=\"B\",+VLOOKUP(B182,QUEST_B!$A$16:$G$78,7,FALSE),IF(A182=\"C\",+VLOOKUP(B182,QUEST_C!$A$16:$G$51,7,FALSE),\"\")))","v":""}]
[null,null,null,null,null,null,null,null,null,null,null,null,null,{"$f":"IF(A183=\"A\",+VLOOKUP(B183,QUEST_A!$A$16:$G$107,7,FALSE),IF(A183=\"B\",+VLOOKUP(B183,QUEST_B!$A$16:$G$78,7,FALSE),IF(A183=\"C\",+VLOOKUP(B183,QUEST_C!$A$16:$G$51,7,FALSE),\"\")))","v":""}]
[null,null,null,null,null,null,null,null,null,null,null,null,null,{"$f":"IF(A184=\"A\",+VLOOKUP(B184,QUEST_A!$A$16:$G$107,7,FALSE),IF(A184=\"B\",+VLOOKUP(B184,QUEST_B!$A$16:$G$78,7,FALSE),IF(A184=\"C\",+VLOOKUP(B184,QUEST_C!$A$16:$G$51,7,FALSE),\"\")))","v":""}]
[null,null,null,null,null,null,null,null,null,null,null,null,null,{"$f":"IF(A185=\"A\",+VLOOKUP(B185,QUEST_A!$A$16:$G$107,7,FALSE),IF(A185=\"B\",+VLOOKUP(B185,QUEST_B!$A$16:$G$78,7,FALSE),IF(A185=\"C\",+VLOOKUP(B185,QUEST_C!$A$16:$G$51,7,FALSE),\"\")))","v":""}]
[null,null,null,null,null,null,null,null,null,null,null,null,null,{"$f":"IF(A186=\"A\",+VLOOKUP(B186,QUEST_A!$A$16:$G$107,7,FALSE),IF(A186=\"B\",+VLOOKUP(B186,QUEST_B!$A$16:$G$78,7,FALSE),IF(A186=\"C\",+VLOOKUP(B186,QUEST_C!$A$16:$G$51,7,FALSE),\"\")))","v":""}]
[null,null,null,null,null,null,null,null,null,null,null,null,null,{"$f":"IF(A187=\"A\",+VLOOKUP(B187,QUEST_A!$A$16:$G$107,7,FALSE),IF(A187=\"B\",+VLOOKUP(B187,QUEST_B!$A$16:$G$78,7,FALSE),IF(A187=\"C\",+VLOOKUP(B187,QUEST_C!$A$16:$G$51,7,FALSE),\"\")))","v":""}]
[null,null,null,null,null,null,null,null,null,null,null,null,null,{"$f":"IF(A188=\"A\",+VLOOKUP(B188,QUEST_A!$A$16:$G$107,7,FALSE),IF(A188=\"B\",+VLOOKUP(B188,QUEST_B!$A$16:$G$78,7,FALSE),IF(A188=\"C\",+VLOOKUP(B188,QUEST_C!$A$16:$G$51,7,FALSE),\"\")))","v":""}]
[null,null,null,null,null,null,null,null,null,null,null,null,null,{"$f":"IF(A189=\"A\",+VLOOKUP(B189,QUEST_A!$A$16:$G$107,7,FALSE),IF(A189=\"B\",+VLOOKUP(B189,QUEST_B!$A$16:$G$78,7,FALSE),IF(A189=\"C\",+VLOOKUP(B189,QUEST_C!$A$16:$G$51,7,FALSE),\"\")))","v":""}]
[null,null,null,null,null,null,null,null,null,null,null,null,null,{"$f":"IF(A190=\"A\",+VLOOKUP(B190,QUEST_A!$A$16:$G$107,7,FALSE),IF(A190=\"B\",+VLOOKUP(B190,QUEST_B!$A$16:$G$78,7,FALSE),IF(A190=\"C\",+VLOOKUP(B190,QUEST_C!$A$16:$G$51,7,FALSE),\"\")))","v":""}]
[null,null,null,null,null,null,null,null,null,null,null,null,null,{"$f":"IF(A191=\"A\",+VLOOKUP(B191,QUEST_A!$A$16:$G$107,7,FALSE),IF(A191=\"B\",+VLOOKUP(B191,QUEST_B!$A$16:$G$78,7,FALSE),IF(A191=\"C\",+VLOOKUP(B191,QUEST_C!$A$16:$G$51,7,FALSE),\"\")))","v":""}]
[null,null,null,null,null,null,null,null,null,null,null,null,null,{"$f":"IF(A192=\"A\",+VLOOKUP(B192,QUEST_A!$A$16:$G$107,7,FALSE),IF(A192=\"B\",+VLOOKUP(B192,QUEST_B!$A$16:$G$78,7,FALSE),IF(A192=\"C\",+VLOOKUP(B192,QUEST_C!$A$16:$G$51,7,FALSE),\"\")))","v":""}]
[null,null,null,null,null,null,null,null,null,null,null,null,null,{"$f":"IF(A193=\"A\",+VLOOKUP(B193,QUEST_A!$A$16:$G$107,7,FALSE),IF(A193=\"B\",+VLOOKUP(B193,QUEST_B!$A$16:$G$78,7,FALSE),IF(A193=\"C\",+VLOOKUP(B193,QUEST_C!$A$16:$G$51,7,FALSE),\"\")))","v":""}]
[null,null,null,null,null,null,null,null,null,null,null,null,null,{"$f":"IF(A194=\"A\",+VLOOKUP(B194,QUEST_A!$A$16:$G$107,7,FALSE),IF(A194=\"B\",+VLOOKUP(B194,QUEST_B!$A$16:$G$78,7,FALSE),IF(A194=\"C\",+VLOOKUP(B194,QUEST_C!$A$16:$G$51,7,FALSE),\"\")))","v":""}]
[null,null,null,null,null,null,null,null,null,null,null,null,null,{"$f":"IF(A195=\"A\",+VLOOKUP(B195,QUEST_A!$A$16:$G$107,7,FALSE),IF(A195=\"B\",+VLOOKUP(B195,QUEST_B!$A$16:$G$78,7,FALSE),IF(A195=\"C\",+VLOOKUP(B195,QUEST_C!$A$16:$G$51,7,FALSE),\"\")))","v":""}]
[null,null,null,null,null,null,null,null,null,null,null,null,null,{"$f":"IF(A196=\"A\",+VLOOKUP(B196,QUEST_A!$A$16:$G$107,7,FALSE),IF(A196=\"B\",+VLOOKUP(B196,QUEST_B!$A$16:$G$78,7,FALSE),IF(A196=\"C\",+VLOOKUP(B196,QUEST_C!$A$16:$G$51,7,FALSE),\"\")))","v":""}]
[null,null,null,null,null,null,null,null,null,null,null,null,null,{"$f":"IF(A197=\"A\",+VLOOKUP(B197,QUEST_A!$A$16:$G$107,7,FALSE),IF(A197=\"B\",+VLOOKUP(B197,QUEST_B!$A$16:$G$78,7,FALSE),IF(A197=\"C\",+VLOOKUP(B197,QUEST_C!$A$16:$G$51,7,FALSE),\"\")))","v":""}]
[null,null,null,null,null,null,null,null,null,null,null,null,null,{"$f":"IF(A198=\"A\",+VLOOKUP(B198,QUEST_A!$A$16:$G$107,7,FALSE),IF(A198=\"B\",+VLOOKUP(B198,QUEST_B!$A$16:$G$78,7,FALSE),IF(A198=\"C\",+VLOOKUP(B198,QUEST_C!$A$16:$G$51,7,FALSE),\"\")))","v":""}]
[null,null,null,null,null,null,null,null,null,null,null,null,null,{"$f":"IF(A199=\"A\",+VLOOKUP(B199,QUEST_A!$A$16:$G$107,7,FALSE),IF(A199=\"B\",+VLOOKUP(B199,QUEST_B!$A$16:$G$78,7,FALSE),IF(A199=\"C\",+VLOOKUP(B199,QUEST_C!$A$16:$G$51,7,FALSE),\"\")))","v":""}]
[null,null,null,null,null,null,null,null,null,null,null,null,null,{"$f":"IF(A200=\"A\",+VLOOKUP(B200,QUEST_A!$A$16:$G$107,7,FALSE),IF(A200=\"B\",+VLOOKUP(B200,QUEST_B!$A$16:$G$78,7,FALSE),IF(A200=\"C\",+VLOOKUP(B200,QUEST_C!$A$16:$G$51,7,FALSE),\"\")))","v":""}]
[null,null,null,null,null,null,null,null,null,null,null,null,null,{"$f":"IF(A201=\"A\",+VLOOKUP(B201,QUEST_A!$A$16:$G$107,7,FALSE),IF(A201=\"B\",+VLOOKUP(B201,QUEST_B!$A$16:$G$78,7,FALSE),IF(A201=\"C\",+VLOOKUP(B201,QUEST_C!$A$16:$G$51,7,FALSE),\"\")))","v":""}]
[null,null,null,null,null,null,null,null,null,null,null,null,null,{"$f":"IF(A202=\"A\",+VLOOKUP(B202,QUEST_A!$A$16:$G$107,7,FALSE),IF(A202=\"B\",+VLOOKUP(B202,QUEST_B!$A$16:$G$78,7,FALSE),IF(A202=\"C\",+VLOOKUP(B202,QUEST_C!$A$16:$G$51,7,FALSE),\"\")))","v":""}]
[null,null,null,null,null,null,null,null,null,null,null,null,null,{"$f":"IF(A203=\"A\",+VLOOKUP(B203,QUEST_A!$A$16:$G$107,7,FALSE),IF(A203=\"B\",+VLOOKUP(B203,QUEST_B!$A$16:$G$78,7,FALSE),IF(A203=\"C\",+VLOOKUP(B203,QUEST_C!$A$16:$G$51,7,FALSE),\"\")))","v":""}]
[null,null,null,null,null,null,null,null,null,null,null,null,null,{"$f":"IF(A204=\"A\",+VLOOKUP(B204,QUEST_A!$A$16:$G$107,7,FALSE),IF(A204=\"B\",+VLOOKUP(B204,QUEST_B!$A$16:$G$78,7,FALSE),IF(A204=\"C\",+VLOOKUP(B204,QUEST_C!$A$16:$G$51,7,FALSE),\"\")))","v":""}]
[null,null,null,null,null,null,null,null,null,null,null,null,null,{"$f":"IF(A205=\"A\",+VLOOKUP(B205,QUEST_A!$A$16:$G$107,7,FALSE),IF(A205=\"B\",+VLOOKUP(B205,QUEST_B!$A$16:$G$78,7,FALSE),IF(A205=\"C\",+VLOOKUP(B205,QUEST_C!$A$16:$G$51,7,FALSE),\"\")))","v":""}]
[null,null,null,null,null,null,null,null,null,null,null,null,null,{"$f":"IF(A206=\"A\",+VLOOKUP(B206,QUEST_A!$A$16:$G$107,7,FALSE),IF(A206=\"B\",+VLOOKUP(B206,QUEST_B!$A$16:$G$78,7,FALSE),IF(A206=\"C\",+VLOOKUP(B206,QUEST_C!$A$16:$G$51,7,FALSE),\"\")))","v":""}]
[null,null,null,null,null,null,null,null,null,null,null,null,null,{"$f":"IF(A207=\"A\",+VLOOKUP(B207,QUEST_A!$A$16:$G$107,7,FALSE),IF(A207=\"B\",+VLOOKUP(B207,QUEST_B!$A$16:$G$78,7,FALSE),IF(A207=\"C\",+VLOOKUP(B207,QUEST_C!$A$16:$G$51,7,FALSE),\"\")))","v":""}]
[null,null,null,null,null,null,null,null,null,null,null,null,null,{"$f":"IF(A208=\"A\",+VLOOKUP(B208,QUEST_A!$A$16:$G$107,7,FALSE),IF(A208=\"B\",+VLOOKUP(B208,QUEST_B!$A$16:$G$78,7,FALSE),IF(A208=\"C\",+VLOOKUP(B208,QUEST_C!$A$16:$G$51,7,FALSE),\"\")))","v":""}]
[null,null,null,null,null,null,null,null,null,null,null,null,null,{"$f":"IF(A209=\"A\",+VLOOKUP(B209,QUEST_A!$A$16:$G$107,7,FALSE),IF(A209=\"B\",+VLOOKUP(B209,QUEST_B!$A$16:$G$78,7,FALSE),IF(A209=\"C\",+VLOOKUP(B209,QUEST_C!$A$16:$G$51,7,FALSE),\"\")))","v":""}]
[null,null,null,null,null,null,null,null,null,null,null,null,null,{"$f":"IF(A210=\"A\",+VLOOKUP(B210,QUEST_A!$A$16:$G$107,7,FALSE),IF(A210=\"B\",+VLOOKUP(B210,QUEST_B!$A$16:$G$78,7,FALSE),IF(A210=\"C\",+VLOOKUP(B210,QUEST_C!$A$16:$G$51,7,FALSE),\"\")))","v":""}]
[null,null,"NULO","NULO","NULO","NULO","NULO","NULO","NULO","NULO","NULO","NULO","NULO","NULO"]

{"sheet":"BASE_A","index":8,"n_rows":30,"n_cols":10,"rows_kept":30,"cut":false,"hidden":true,"merged":[]}
["CÓDIGO\nAP","NÚMERO PREGUNTA","AGRUPACIÓN DE PELIGROS","NORMATIVA UTILIZADA","DESCRIPCIÓN PREGUNTA DE EVALUACIÓN","RESPUESTA","PELIGRO ESPECIFICO ASOCIADO","TIPO POTENCIAL DE ACCIDENTE","DESCRIPCIÓN JERARQUÍA DEL CONTROL","DESCRIPCIÓN MEDIDA PREVENTIVA (PRESCRIPCIÓN)"]
["A.01",1,"Máquinas portátiles","Articulo 184, Código del Trabajo","¿La herramienta portátil que usted utiliza cuenta con sistema de seguridad hombre muerto o gatillo de seguridad con asa de protección para evitar activaciones involuntarias?",null,"Exposición a zonas peligrosas de la máquina portátil","Amputación de cualquier parte del cuerpo por atrapamiento","Técnico/Ingeniería","Debe asegurarse que la herramienta portátil que usted utiliza esté provista de sistema hombre muerto o gatillo de seguridad con asa de protección, para evitar activaciones involuntarias."]
["A.01",2,"Máquinas portátiles","D.S. 594, Condiciones básicas en los CT","¿Utiliza los elementos de protección personal (EPP) acordes con las características que exige el riesgo a cubrir al operar con máquinas portátiles?",null,"Exposición a zonas peligrosas de la máquina portátil","Amputación de cualquier parte del cuerpo por atrapamiento","Elemento de Protección Personal","Debe asegurarse de utilizar los elementos de protección personal que cumplan con las características y tipos que exige el riesgo a cubrir por el trabajo con máquinas portátiles. Los elementos de protección personal, sean éstos de procedencia nacional o extranjera, deberán cumplir con las normas y exigencias de calidad Certificación de Calidad de Elementos de Protección Personal contra Riesgos Ocupacionales."]
["A.01",3,"Máquinas portátiles","Articulo 184, Código del Trabajo","¿Se asegura de conectar la herramienta portátil en circuitos eléctricos que se encuentren protegidos con interruptores automáticos, protectores diferenciales y que el sistema de puesta a tierra funciona correctamente?",null,"Trabajo con herramientas eléctricas portátiles","Exposición o contacto con electricidad","Técnico/Ingeniería","Debe asegurarse de conectar la herramienta portátil que usted utilice en circuitos eléctricos que se encuentren protegidos con interruptores automáticos, protectores diferenciales y en donde el sistema de puesta a tierra funcione correctamente"]
["A.01",4,"Máquinas portátiles","D.S. 40, Reglamento sobre PRP","¿Se asegura de que el enchufe de la herramienta portátil que usted utiliza sea adecuado al toma corriente de la instalación ?",null,"Trabajo con herramientas eléctricas portátiles","Exposición o contacto con electricidad","Control administrativo – Permiso de trabajo – Autorización especial, etc.","Debe asegurarse de que el enchufe de la herramienta portátil que usted utiliza sea adecuado al toma corriente de la instalación"]
["A.02",1,"Herramientas manuales","Articulo 184, Código del Trabajo","¿Cumple con implementar un plan de mantenimiento de las herramientas manuales dispuestas para sus trabajos, descartando aquellas herramientas que se encuentran defectuosas?",null,"Trabajo con herramientas manuales no motrices","Golpes por/con/contra no especificados en otra parte","Control administrativo – Procedimiento de Trabajo Seguro (PTS)","Debe implementar un plan de mantenimiento de las herramientas manuales dispuestas para sus trabajos, descartando aquellas herramientas que se encuentren defectuosas."]
["A.02",2,"Herramientas manuales","Articulo 184, Código del Trabajo","¿Cumple con transportar y almacenar las herramientas, asegurando su buen estado de conservación, utilizando cajas o bolsas resistentes de acuerdo a las indicaciones del fabricante, asegurándose de evitar la exposición de componentes con filos o puntas?",null,"Trabajo con herramientas manuales no motrices","Amputación de cualquier parte del cuerpo por atrapamiento","Control administrativo – Procedimiento de Trabajo Seguro (PTS)","Debe transportar y almacenar las herramientas, asegurando su buen estado de conservación, utilizando cajas o bolsas resistentes de acuerdo a las indicaciones del fabricante, asegurándose de evitar la exposición de componentes con filos o puntas."]
["A.03",1,"Almacenamiento de materiales","D.S. 594, Condiciones básicas en los CT","¿Cumple con establecer lugares específicos para almacenar o acopiar materiales, estableciendo límites del área de almacenamiento de acuerdo a las categorías de los materiales?",null,"Espacio almacenamiento","Choque / colisión o roce lateral en instalaciones de la empresa","Control administrativo – Señalización de seguridad","Debe establecer lugares específicos para almacenar o acopiar materiales, estableciendo límites del área de almacenamiento de acuerdo a las categorías de los materiales."]
["A.03",2,"Almacenamiento de materiales","D.S. 594, Condiciones básicas en los CT","¿Cumple con mantener empotradas o ancladas las estanterías o estructuras dispuestas para el almacenamiento de materiales, considerando las condiciones de máxima carga y la estabilidad de estos.?",null,"Apilamientos: Estabilidad","Golpeado por objetos de derrumbe","Control administrativo – Capacitación (Charla)","Debe mantener empotradas o ancladas las estanterías o estructuras dispuestas para el almacenamiento de materiales, considerando las condiciones de máxima carga y la estabilidad de estos."]
["A.03",3,"Almacenamiento de materiales","D.S. 594, Condiciones básicas en los CT","¿Cumple con disponer de escalas de mano, pisos o taburetes para acceder a las zonas elevadas de las estanterías, los que poseen elementos antideslizantes en sus puntos de apoyo?",null,"Estanterías: Carga máxima","Golpeado por objetos de derrumbe","Control administrativo – Señalización de seguridad","Debe implementar escalas de mano, pisos o taburetes o elementos similares para la carga y descarga de materiales en estanterías. Estos equipos auxiliares deberán contar con elementos antideslizantes en sus puntos de apoyo y estar acordes con la altura de las estanterías."]
["A.04",1,"Aparatos a presión","D.S. 48","¿Ha ejecutado mantención preventiva para el aparato a presión?",null,"Aparatos a presión: Libro de vida","Explosión o implosión (de materiales o equipos)","Control administrativo – Procedimiento de Trabajo Seguro (PTS)","Deberá ejecutar mantención preventiva para el aparato a presión"]
["A.04",2,"Aparatos a presión","D.S. 48","¿Conoce las especificaciones del uso seguro del aparato a presión, las prohibiciones, medidas preventivas y como debe actuar ante una situación de emergencia?",null,"Aparatos a presión: mantención preventiva","Explosión o implosión (de materiales o equipos)","Control administrativo – Procedimiento de Trabajo Seguro (PTS)","Debe asegurarse de conocer las especificaciones de uso, prohibiciones, medidas preventivas y saber como actuar ante situaciones de emergencia producto del uso del aparato a presión"]
["A.04",3,"Aparatos a presión","D.S. 48","¿Cuándo está utilizando el aparato a presión se asegura de que no se ejecuten otras actividades a su alrededor no relacionadas con la tarea?",null,"Aparatos a presión: Señalización","Explosión o implosión (de materiales o equipos)","Control administrativo – Señalización de seguridad","Deberá asegurarse cuando esté utilizando el aparato a presión que no se ejecuten otras actividades a su alrededor no relacionadas con la tarea"]
["A.04",4,"Aparatos a presión","D.S. 48","¿Cuándo utiliza aparatos a presión, se asegura de prohibir el ingreso de toda persona ajena o no autorizada por usted?",null,"Procedimientos de los Aparatos a presión","Explosión o implosión (de materiales o equipos)","Control administrativo – Procedimiento de Trabajo Seguro (PTS)","Deberá asegurarse de prohibir el ingreso de toda persona ajena o no autorizada por usted cuando esté realizando tareas con aparatos a presión"]
["A.04",5,"Aparatos a presión","D.S. 48","¿En el área cercana en donde opera el aparato a presión procura no almacenar productos, materias primas u otros elementos?",null,"Aparatos a presión: Autorización","Incendio (fuego no controlado)","Control administrativo – Señalización de seguridad","Deberá procurar mantener el área cercana en donde opera el aparato a presión libre de almacenamiento de productos, materias primas u otros elementos"]
["A.04",6,"Aparatos a presión","D.S. 48","¿Se asegura de proteger aquellas partes del aparato a presión que se encuentran a elevadas temperaturas en las que podría entrar en contacto directo con usted?",null,"Aparatos a presión: Señalización","Contacto con fuego, sustancias u objetos calientes (altas temperaturas)","Control administrativo – Control de Acceso","Deberá proteger aquellas partes del aparato a presión que se encuentran a elevadas temperaturas que podrían entrar en contacto directo con usted"]
["A.05",1,"Equipos de elevación (cargas)","Ley 20.296","¿Existe un programa de mantención periódica de los elementos que componen los equipos elevación de cargas (anclajes, ganchos, cuerdas, cadenas, eslingas, otros) y existe un registro documentado de esta actividad?",null,"Aparejos de elevación: Conservación","Caída a distinto nivel - Desde alturas >= 1,8 metros","Control administrativo – Procedimiento de Trabajo Seguro (PTS)","Deberá establecerse un programa de mantención periódicas, con tal de detectar deficiencias en el estado de conservación y mantención de los elementos que componen los aparejos de elevación de cargas (anclajes, ganchos, cuerdas, cadenas, eslingas, otros), y mantener registro documentado de esta actividad"]
["A.05",2,"Equipos de elevación (cargas)","Ley 20.296","¿Los equipos de elevación poseen un dispositivo de parada de emergencia, claramente señalizado y accesible?",null,"Aparejos de elevación: Carga máxima","Caída a distinto nivel - Desde alturas >= 1,8 metros","Control administrativo – Señalización de seguridad","Deberá incorporar un dispositivo de parada de emergencia en los equipos de elevación, claramente señalizado y accesible"]
["A.06",1,"Conducción y uso de maquinaria pesada","Articulo 184, Código del Trabajo","¿Se cuenta con un plan de mantenimiento preventivo de la maquinaria?",null,"Maquinaria pesada","Atrapamiento por un objeto (materiales aplastante)","Control administrativo – Procedimiento de Trabajo Seguro (PTS)","Se debe implementar un plan de mantención de la maquinaria existente, incorporando la revisión de todos los principios de operación y componentes rodantes."]
["A.06",2,"Conducción y uso de maquinaria pesada","Articulo 184, Código del Trabajo","¿Utiliza elementos de protección personal durante la operación, ascensos y descensos de cabina?",null,"Desplazamiento maquinaria-Operación con el equipo","Atropello / Aplastamiento / Golpe / Colisión / Volcamiento","Control administrativo – Control de Acceso","Se deben utilizar elementos de protección personal como guantes, casco, zapatos de seguridad, antiparras, protector auditivo, mascara con filtro N-P100 u otros según corresponda"]
["A.06",3,"Conducción y uso de maquinaria pesada","Articulo 184, Código del Trabajo","¿Utiliza elementos de protección personal durante la operación, ascensos y descensos de cabina?",null,"Maquinaria pesada","Atrapamiento por un objeto (materiales aplastante)","Control administrativo – Procedimiento de Trabajo Seguro (PTS)","Se deben utilizar elementos de protección personal como guantes, casco, zapatos de seguridad, antiparras, protector auditivo, mascara con filtro N-P100 u otros según corresponda"]
["A.06",4,"Conducción y uso de maquinaria pesada","D.S. 594, Condiciones básicas en los CT","¿Se cuenta con un plan de mantenimiento preventivo de la maquinaria?",null,"Maquinaria pesada","Atrapamiento por un objeto (materiales aplastante)","Control administrativo – Procedimiento de Trabajo Seguro (PTS)","Se debe implementar un plan de mantención de la maquinaria existente, incorporando la revisión de todos los principios de operación y componentes rodantes."]
["A.07",1,"Conducción y uso de vehículos","Ley 18.290","¿Se ha implementado, ejecutado y controlado un programa de mantenimiento para los vehículos utilizados?",null,"Conducción en la vía pública","Choque / colisión o roce lateral en la vía publica","Control administrativo – Procedimiento de Trabajo Seguro (PTS)","Se debe implementar, ejecutar y controlar un programa de mantenimiento para los vehículos utilizados."]
["A.07",2,"Conducción y uso de vehículos","Articulo 184, Código del Trabajo","¿Se ha implementado un sistema de control que permita asegurar la existencia y vigencia de la documentación de los vehículos y el conductor?",null,"Conducción en la vía pública","Choque / colisión o roce lateral en la vía publica","Control administrativo – Procedimiento de Trabajo Seguro (PTS)","Se debe implementar un sistema de control que permita asegurar la existencia y vigencia de la documentación de los vehículos y el conductor, teniendo en cuenta:\na) Revisión técnica (los sistemas de dirección, frenos, luces, neumáticos y combustión interna).\nb) Permiso de circulación.\nc) Seguro Obligatorio (SOAP).\nd) Licencia de conducir vigente; de la clase que corresponda al tipo de vehículo a utilizar."]
["A.08",1,"Transpaleta manual / carros","Articulo 184, Código del Trabajo","¿Se encuentra señalizada la capacidad máxima de los carros manuales de carga que utiliza?",null,"Traslado de carros","Sobreesfuerzos al empujar y/o tirar objetos","Control administrativo – Señalización de seguridad","Debe mantener señalización visible de la capacidad de peso máximo de los carros manuales de carga que utiliza."]
["A.08",2,"Transpaleta manual / carros","Articulo 184, Código del Trabajo","¿Tiene conocimiento del manual de uso  proporcionado por el fabricante de la transpaleta y/o carros manual que usted utiliza?",null,"Traslado de carros","Atrapamiento entre dos objetos móviles","Control administrativo – Procedimiento de Trabajo Seguro (PTS)","Debe poseer conocimiento del manual de uso  proporcionado por el fabricante de la transpaleta y/o carros manual que usted utiliza. Si no posee este manual, lo puede descargar desde la pagina web del fabricante."]
["A.09",1,"Almacenamiento de gases (argón, oxigeno, etc.)","D.S. 594, Condiciones básicas en los CT","¿El cuerpo de todos los cilindros se encuentra en buen estado, es decir; sin cortes, hendiduras, abolladuras, corrosión o señales de arco eléctrico?",null,"Cilindros: estado","Explosión o implosión (de materiales o equipos)","Sustitución","Todos los cilindros deben estar visiblemente en buen estado, es decir; sin cortes, hendiduras, abolladuras, corrosión o señales de arco eléctrico'"]
["A.09",2,"Almacenamiento de gases (argón, oxigeno, etc.)","D.S. 594, Condiciones básicas en los CT","¿Se dispone de cubierta protectora, ya sea gorro o caperuza para todos los cilindros de gas almacenados, incluso los vacíos?",null,"Elementos de seguridad","Contacto por inhalación de sustancias nocivas (a través de la nariz, la boca)","Técnico/Ingeniería","Se deberá disponer de cubierta protectora, ya sea gorro o caperuza para todos los cilindros de gases almacenados, incluso los vacíos"]
["A.09",3,"Almacenamiento de gases (argón, oxigeno, etc.)","D.S. 594, Condiciones básicas en los CT","¿Todos los cilindros de gas son almacenados en posición vertical y posee un sistema para encadenarlos individual a una pared o baranda que resista el peso?",null,"Condiciones de almacenamiento","Golpeado por objetos que están siendo manipulados","Técnico/Ingeniería","Deberá almacenar todos los cilindros de gas en posición vertical y deberá disponer de un sistema de cadenas para sujetarlos de forma individual a una pared o baranda que resista el peso"]
["A.09",4,"Almacenamiento de gases (argón, oxigeno, etc.)","D.S. 594, Condiciones básicas en los CT","¿El área de almacenamiento de los cilindros de gas, es un lugar fresco, protegido de la humedad y del sol?",null,"Condiciones de almacenamiento","Golpeado por objetos que están siendo manipulados","Técnico/Ingeniería","Deberá implementar y adecuar el área de almacenamiento de los cilindros de gas para que sea un lugar fresco, protegido de la humedad y del sol"]

{"sheet":"BASE_B","index":9,"n_rows":21,"n_cols":10,"rows_kept":21,"cut":false,"hidden":true,"merged":[]}
["CÓDIGO\nAP","NÚMERO PREGUNTA","AGRUPACIÓN DE PELIGROS","NORMATIVA UTILIZADA","DESCRIPCIÓN PREGUNTA DE EVALUACIÓN","RESPUESTA","PELIGRO ESPECIFICO ASOCIADO","TIPO POTENCIAL DE ACCIDENTE","DESCRIPCIÓN JERARQUÍA DEL CONTROL","DESCRIPCIÓN MEDIDA PREVENTIVA (PRESCRIPCIÓN)"]
["B.01",1,"Trabajo en espacio confinado","D.S. 594, Condiciones básicas en los CT","¿Cumple con acreditar contar con capacitado teórica y práctica sobre los peligros, riesgos, consecuencias, medidas de control asociadas, uso correcto de equipos de medición de atmósfera y de equipos de protección personal.",null,"Trabajo en espacio confinado","Contacto por inhalación de sustancias nocivas (a través de la nariz, la boca)","Control administrativo – Procedimiento de Trabajo Seguro (PTS)","Debe acreditar contar con capacitado teórica y práctica sobre los peligros, riesgos, consecuencias, medidas de control asociadas, uso correcto de equipos de medición de atmósfera y de equipos de protección personal."]
["B.01",2,"Trabajo en espacio confinado","D.S. 594, Condiciones básicas en los CT","¿Cumple con acreditar que los equipos de protección personal básicos y específicos (equipos de respiración autónoma, equipos de cuerdas, etc.), equipos de ventilación forzada, equipos de medición u otros, se encuentren mantenidos, calibrados y/o certificados?",null,"Trabajo en espacio confinado","Contacto por inhalación de sustancias nocivas (a través de la nariz, la boca)","Control administrativo – Permiso de trabajo – Autorización especial, etc.","Debe acreditar que los equipos de protección personal básicos y específicos (equipos de respiración autónoma, equipos de cuerdas, etc.), equipos de ventilación forzada, equipos de medición u otros, se encuentren mantenidos, calibrados y/o certificados."]
["B.02",1,"Trabajo en altura >= 1,8 metros","NCh 2501","Si utiliza andamios, ¿están construidos con materiales sólidos y resistentes a la corrosión atmosférica?",null,"Otros peligros específicos","Conjunto de riesgos","Control administrativo – Otros","Se debe efectuar un análisis acucioso a los materiales que forman parte de los andamios ya que pueden tener corrosión que podrían afectar la resistencia de estos. En caso de ser necesario se deberán reemplazar los materiales que presenten daño."]
["B.02",2,"Trabajo en altura >= 1,8 metros","NCh 2501","Las bases sobre las que se sustenta el andamio están apoyadas sólidamente sobre estructuras adecuadas que permiten mantener la verticalidad del andamio y evitar que los pie derecho se hundan en el piso.",null,"Otros peligros específicos","Conjunto de riesgos","Control administrativo – Otros","Se debe implementar placas base de material resistente (acero, madera) con un espesor mínimo igual a 5 mm., y cuya superficie de contacto con su plano de apoyo sea como mínimo de 150 cm2. Uno de sus lados deberá tener como mínimo 120 mm. de largo"]
["B.02",3,"Trabajo en altura >= 1,8 metros","D.S. 594, Condiciones básicas en los CT","Si existen placas o planchas en el suelo que cubren aberturas o fosos, ¿están dispuestas de forma que resistan el paso de personas o vehículos según sea el caso?",null,"Otros peligros específicos","Caída de objetos por desplome o derrumbamiento","Control administrativo – Otros","Se deberán proteger las aberturas en el suelo, por donde circula, con placas o planchas que soporten al menos el peso de los vehículos y la carga que pudieran transportar."]
["B.03",1,"Trabajo con electricidad","D.S. 594, Condiciones básicas en los CT","¿Cuenta con los elementos de protección personal que cumplan con los requisitos, características y tipos que exige el trabajo con electricidad, además de tener la capacitación teórica y práctica necesaria para su correcto uso?",null,"Trabajos eléctricos en instalaciones BT-MT-AT","Exposición o contacto con electricidad","Elemento de Protección Personal","Debe poseer los EPP que cumplan con los requisitos, características y tipos que exige el trabajo con electricidad, además de tener la capacitación teórica y práctica necesaria para su correcto uso."]
["B.08",1,"Trabajo administrativo en oficina","D.S. 594, Condiciones básicas en los CT","¿Se asegura de mantener pasillos limpios y libres de obstáculos que permitan su desplazamiento en forma expedita y segura, y en caso de existir máquinas que los pasillos por donde usted circula no sean inferiores a 150 centímetros?",null,"Falta de orden y aseo","Caídas a un mismo nivel","Control administrativo – Procedimiento de Trabajo Seguro (PTS)","Debe asegurarse de mantener pasillos limpios y libres de obstáculos que permitan su desplazamiento en forma expedita y segura, y en caso de existir máquinas que los pasillos por donde usted circula no sean inferiores a 150 centímetros"]
["B.08",2,"Trabajo administrativo en oficina","Articulo 184, Código del Trabajo","¿Se asegura de mantener la instalación eléctrica en buenas condiciones, que permita el correcto funcionamiento de la instalación, asegurando que dispone de enchufes suficientes donde se necesiten y evitando el uso de extensiones eléctricas?",null,"Obstruir pasillos de transito","Caídas a un mismo nivel","Control administrativo – Señalización de seguridad","Debe asegurarse de mantener la instalación eléctrica en buenas condiciones, que permita el correcto funcionamiento de la instalación, asegurando la disponibilidad de enchufes suficientes donde se necesiten y evitando el uso de extensiones eléctricas"]
["B.08",3,"Trabajo administrativo en oficina","D.S. 40, Reglamento sobre PRP","¿Se asegura de ejecutar medidas básicas de seguridad para la manipulación de líquidos calientes, tales como mantener la taza con líquido caliente alejada del teclado o el área directa de trabajo, transitar con precaución cuando se manipulan estos, entre otras?",null,"Transitar por escaleras","Caída a distinto nivel - Desde alturas >= 1,8 metros","Control administrativo – Capacitación (Curso ACHS)","Deberá asegurarse de ejecutar medidas básicas de seguridad para la manipulación de líquidos calientes, tales como mantener la taza con líquido caliente alejada del teclado o el área directa de trabajo, transitar con precaución cuando se manipulan estos, entre otras"]
["B.07",1,"Trabajo con soldadura","D.S. 594, Condiciones básicas en los CT","¿Utiliza los elementos de protección personal acordes con las características y tipos que exige el riesgo a cubrir por trabajo con soldadura entre ellas protección facial, ocular y ropa de protección, además cumple con las normas de Certificación de Calidad de Elementos de Protección Personal contra Riesgos Ocupacionales.?",null,"Actividades de corte y soldadura","Proyección de partículas o fragmentos","Elemento de Protección Personal","Debe asegurarse de utilizar los elementos de protección personal que cumplan con las características y tipos que exige el riesgo a cubrir por el trabajo con soldadura entre ellas protección facial, ocular y ropa de protección..\nLos elementos de protección personal, sean éstos de procedencia nacional o extranjera, deberán cumplir con las normas de Certificación de Calidad de Elementos de Protección Personal contra Riesgos Ocupacionales."]
["B.07",2,"Trabajo con soldadura","Articulo 184, Código del Trabajo","¿Se asegurar que todos los equipos pesados portátiles utilizados para el trabajo con soldadura cuenten con un dispositivo de frenado o elementos de fijación que impida movimientos accidentales?",null,"Actividades de corte y soldadura","Exposición o contacto con electricidad","Control administrativo – Procedimiento de Trabajo Seguro (PTS)","Debe asegurarse que todos los equipos pesados portátiles utilizados para el trabajo con soldadura cuenten con un dispositivo de frenado o elementos de fijación que impida movimientos accidentales"]
["B.07",3,"Trabajo con soldadura","Articulo 184, Código del Trabajo","Se asegura de utilizar equipos aprobados y certificados como sopletes, distribuidores (manifolds), reguladores, válvulas reductoras de presión, generadores de acetileno, máquinas de soldar, porta electrodos, entre otros?",null,"Actividades de corte y soldadura","Exposición o contacto con electricidad","Control administrativo – Procedimiento de Trabajo Seguro (PTS)","Debe asegurarse de utilizar equipos aprobados y certificados como sopletes, distribuidores (manifolds), reguladores, válvulas reductoras de presión, generadores de acetileno, máquinas de soldar, porta electrodos, entre ptros"]
["B.07",4,"Trabajo con soldadura","Articulo 184, Código del Trabajo","¿Se asegura de utilizar pantallas protectoras incombustibles o resistentes al fuego, para proteger a otras personas de la energía radiante y de las salpicaduras de la soldadura o corte?",null,"Actividades de corte y soldadura","Proyección de partículas o fragmentos","Control administrativo – Señalización de seguridad","Debe asegurarse de utilizar pantallas protectoras incombustibles o resistentes al fuego, para proteger a otras personas de la energía radiante y de las salpicaduras de la soldadura o corte"]
["B.10",1,"Trabajo en manejo manual de cargas (MMC)","Ley Nº 20.001","¿Las cargas que se manipulan manualmente son inferiores a 50 kg.?",null,"Otros peligros específicos","Fatiga física","Control administrativo – Otros","Toda manipulación de cargas superior a 50 Kg deberá implicar el uso obligatorio de elementos mecanizados o la automatización de procesos. Este requerimiento deberá permitir, además, que tanto mujeres como menores de 18 años no levanten cargas superiores a 20 Kg."]
["B.10",2,"Trabajo en manejo manual de cargas (MMC)","D.S. 63, Reglamento MMC","¿Posee capacitación adecuadas para realizar la manipulación manual de una forma segura?",null,"Otros peligros específicos","Sobreesfuerzos","Control administrativo – Otros","Debe capacitarse sobre los riesgos derivados del manejo manual de carga y las formas de prevenirlos. Asimismo, se les deberá entregar información acerca de la carga que debe manejar manualmente, uso correcto de las ayudas mecánicas, uso correcto de los equipos de protección personal, en caso de ser necesario, y técnicas seguras para el manejo manual de carga."]
["B.10",3,"Trabajo en manejo manual de cargas (MMC)","D.S. 63, Reglamento MMC","¿Utiliza guantes para el manejo manual de cargas?",null,"Otros peligros específicos","Cortes por objetos o herramientas","Control administrativo – Otros","Se debe utilizar guantes siempre que se efectua manejo manual de cargas."]
["B.10",4,"Trabajo en manejo manual de cargas (MMC)","D.S. 63, Reglamento MMC","¿Levanta carga manualmente siguiendo el método de levantamiento seguro?.",null,"Otros peligros específicos","Exposición a posturas forzadas","Control administrativo – Otros","El levantamiento manual de cargas se deberá realizar siguiendo el método de levantamiento seguro de carga: colocar un pie detrás de la carga y otro al costado, doblar las rodillas manteniendo la espalda recta al ponerse en cuclillas, pegar el mentón al pecho, tomar firmemente el objeto que se pretende levantar por medio de un correcto agarre palmar, mantener los brazos y codos pegados al cuerpo y levantar la carga con la fuerza de los muslos evitando curvar la columna."]
["B.11",5,"Trabajo con exposición agentes químicos","D.S. 594, art. 37; D.S. 148, art. 6","Existe y se aplica un procedimiento para la recogida de derrames, de sustancias tóxicas o nocivas.",null,"Otros peligros específicos","Exposición a sustancias nocivas","Control administrativo – Otros","En caso de derrame se deberá realizar la recogida y disposición final del mismo según las indicaciones y mediante los equipos mencionados en la ficha de seguridad del producto además de lo señalado en la legislación vigente sobre residuos (Decreto Supremo Nº 148)."]
["B.11",6,"Trabajo con exposición agentes químicos","D.S 594, art. 57","Se utilizan guantes y ropa impermeables a las sustancias con las que puede haber contacto dérmico.",null,"Otros peligros específicos","Exposición a contaminantes químicos por contacto","Control administrativo – Otros","En caso de que exista la posibilidad de contacto dérmico con agentes químicos se debe utilizar guantes, calzado y ropa impermeable, resistentes a la acción de dichos agentes."]
["B.11",7,"Trabajo con exposición agentes químicos","D.S. 594, art. 3","Las sustancias químicas están contenidas en recipientes, los cuales a su vez están debidamente etiquetados y se conserva esa señalización durante su uso.",null,"Otros peligros específicos","Exposición a sustancias nocivas","Control administrativo – Otros","Las sustancias y preparados peligrosos deberán guardarse en recipientes resistentes a la acción química (plástico o metal) y mantenerse siempre tapados. Estos envases deberán rotularse con el nombre del contenido y tendrán que incluir los correspondientes símbolos e indicaciones de peligro. Queda absolutamente prohibido guardar estas sustancias en recipientes o envases que previamente contuvieron alimentos (ej.: envases de bebidas gaseosas). Solicite al proveedor la hoja de seguridad de cada producto."]

{"sheet":"BASE_C","index":10,"n_rows":26,"n_cols":10,"rows_kept":26,"cut":false,"hidden":true,"merged":[]}
["CÓDIGO\nAP","NÚMERO PREGUNTA","AGRUPACIÓN DE PELIGROS","NORMATIVA UTILIZADA","DESCRIPCIÓN PREGUNTA DE EVALUACIÓN","RESPUESTA","PELIGRO ESPECIFICO ASOCIADO","TIPO POTENCIAL DE ACCIDENTE","DESCRIPCIÓN JERARQUÍA DEL CONTROL","DESCRIPCIÓN MEDIDA PREVENTIVA (PRESCRIPCIÓN)"]
["C.01",1,"Instalación eléctrica y de gas","Articulo 184, Código del Trabajo","¿Ha implementado un programa de mantención de las instalaciones de GLP, las cuales son ejecutados por personal competente y autorizado por la SEC?","SI","Trabajos en instalaciones de almacenamiento, transporte y distribución de GLP","Incendio (fuego no controlado)","Control administrativo – Procedimiento de Trabajo Seguro (PTS)","Debe implementar un programa de mantención, reparación e inspección de las instalaciones de GLP."]
["C.01",2,"Instalación eléctrica y de gas","Articulo 184, Código del Trabajo","¿Cumple con que los tableros eléctricos cuentan con una cubierta cubre equipos y con una puerta exterior, la cual está totalmente cerrada permitiéndose sobre ella sólo luces piloto de indicación de tablero energizado?",null,"Trabajos en instalaciones eléctricas en el lugar de trabajo (Nivel Usuario)","Exposición o contacto con electricidad","Técnico/Ingeniería","Debe considerar que los tableros eléctricos cuenten con una cubierta cubre equipos y con una puerta exterior. La puerta exterior será totalmente cerrada permitiéndose sobre ella sólo luces piloto de indicación de tablero energizado."]
["C.01",3,"Instalación eléctrica y de gas","Articulo 184, Código del Trabajo","¿Cumple con que toda instalación eléctrica cuenta con un Sistema de Puesta a Tierra (SPT)?",null,"Trabajos en instalaciones eléctricas en el lugar de trabajo (Nivel Usuario)","Exposición o contacto con electricidad","Técnico/Ingeniería","Debe considerar que toda instalación eléctrica disponga de un Sistema de Puesta a Tierra (SPT), para evitar que las personas en contacto con la misma, tanto en el interior como en el exterior, queden sometidas a tensiones de paso, de contacto o transferidas, que superen los umbrales que soporta el ser humano."]
["C.02",1,"Incendio y explosión","D.S. 594, Condiciones básicas en los CT","¿El almacenamiento de materiales y productos inflamables se realiza en armarios, bodegas modulares o en bodegas adaptadas para este fin, debidamente señalizadas?",null,"Ubicación de productos inflamables","Incendio (fuego no controlado)","Control administrativo – Otro (no especificado)","Debe realizar el almacenamiento de materiales y productos inflamables en recintos específicos destinados para tales efectos, en las condiciones adecuadas a las características de cada sustancia y deberán estar identificados de acuerdo a la norma chilena NCh1411/4 Of. 1978, Prevención de riesgos-Parte 4; Identificación de riesgos de materiales.'"]
["C.02",2,"Incendio y explosión","D.S. 594, Condiciones básicas en los CT","En aquellos lugares donde se generan residuos combustibles como retazos, trapos de limpieza, virutas, aserrín, entre otros ¿Se aplica un programa de limpieza periódica, el que considera la manipulación y disposición segura de estos residuos?",null,"Residuos combustibles","Incendio (fuego no controlado)","Control administrativo – Otro (no especificado)","Debe realizar la limpieza periódica de aquellos lugares donde se generan residuos combustibles como retazos, trapos de limpieza, virutas, aserrín, entre otros, y asegurarse que la disposición de los residuos se realice en lugares seguros. Se recomienda implementar un programa de limpieza en estos lugares y difundirlo entre los involucrados."]
["C.02",3,"Incendio y explosión","D.S. 594, Condiciones básicas en los CT","¿Está prohibido fumar y utilizar fuentes de ignición (calor, fuego o chispas), en zonas donde se almacenan o se manejan o se trasvasijan productos combustibles e inflamables?",null,"Prohibición de fumar","Incendio (fuego no controlado)","Control administrativo – Otro (no especificado)","Debe estar prohibido fumar o emplear útiles de ignición ( equipos que generen chispas, calor o fuego) en las áreas donde se almacenan o se manejan productos combustibles, o se trasvasijan líquidos inflamables. Adicionalmente, se deberá señalizar convenientemente esta restricción por medio de señalizaciones de seguridad que cumplan con la normativa chilena sobre la materia."]
["C.02",4,"Incendio y explosión","D.S. 594, Condiciones básicas en los CT","En todas las instalaciones con riesgo de incendio ¿Existen extintores certificados, en número y distribución suficientes, y de la eficacia requerida para garantizar la cobertura completa de la superficie que deben atender ?",null,"Medios de extinción","Incendio (fuego no controlado)","Control administrativo – Otro (no especificado)","Debe disponer de extintores portátiles certificados en las proximidades de los lugares con riesgo de incendio de modo que desde cualquier punto, el recorrido hasta el equipo más cercano no supere la distancia máxima de traslado establecida por la normativa vigente y se encuentre libre de cualquier obstáculo, ubicados a una altura máxima de 1,30 metros, medidos desde el suelo hasta la base del extintor. Aquellos que deban ser ubicados a la intemperie deberán estar ubicados en un nicho o gabinete que permita su retiro expedito. Los extintores deben ser seleccionados teniendo en cuenta los materiales combustibles o inflamables existentes en el lugar y la fácil manipulación por parte de los trabajadores, considerando que el potencial mínimo de extinción de 4A-10BC para el caso de los extintores de polvo químico seco, o 10BC para el caso de extintores de CO2."]
["C.02",5,"Incendio y explosión","D.S. 594, Condiciones básicas en los CT","¿Los extintores se encuentran señalados de acuerdo a la normativa nacional relacionada con la señalización de seguridad siendo fácilmente visibles accesibles y ubicados a una altura máxima de 1, 30 mt (medidos desde el suelo hasta la base del extintor)?",null,"Medios de extinción-Señalización","Incendio (fuego no controlado)","Control administrativo – Otro (no especificado)","Debe señalizar la totalidad de los extintores. Dicha señalización debe cumplir con la normativa nacional relacionada con señalizaciones de seguridad (NCh1411) y deberá ser ubicada de preferencia sobre cada extintor con el objetivo que sea visible desde cualquier punto del área de trabajo."]
["C.02",6,"Incendio y explosión","D.S. 594, Condiciones básicas en los CT","¿Verifica periódicamente que los extintores cuenten con su revisión, control y mantención preventiva anual, actualizada?",null,"Medios de extinción-Inspección","Incendio (fuego no controlado)","Control administrativo – Otro (no especificado)","Debe verificar periódicamente que los extintores cuente con su revisión, control y mantención preventiva, 1 vez al año, según normas chilenas oficiales, realizada por el fabricante o servicio técnico, de acuerdo con lo indicado en la normativa vigente, lo que debe estar señalado en la etiqueta correspondiente, a fin de verificar sus condiciones de funcionamiento. Debe asegurarse que en el periodo en que se realice la mantención de un extintor el lugar de trabajo no quede desprovisto."]
["C.02",7,"Incendio y explosión","D.S. 594, Condiciones básicas en los CT","¿Ha sido instruido en el uso de extintores y existe un registro escrito de esta actividad?.",null,"Capacitación","Incendio (fuego no controlado)","Control administrativo – Otro (no especificado)","Debe estar instruido y entrenado sobre la manera correcta de usar los extintores en caso de emergencia. Debe dejar un registro escrito de esta actividad."]
["C.03",1,"Espacios y superficies de trabajo","D.S. 594, Condiciones básicas en los CT","¿Las superficies mojadas o resbaladizas se mantienen protegidas, cubiertas con materiales antideslizantes o cuentan con drenaje (cuando corresponda)?",null,"Suelos","Contacto por inhalación de sustancias nocivas (a través de la nariz, la boca)","Técnico/Ingeniería","Las superficies mojadas o resbaladizas deberán ser protegidas, cubiertas con materiales antideslizantes o contar con drenaje (cuando corresponda)"]
["C.03",2,"Espacios y superficies de trabajo","D.S. 594, Condiciones básicas en los CT","¿Mantiene señalización de piso mojado cuando se ejecutan labores de limpieza normal?",null,"Suelos resbaladizos","Caídas a un mismo nivel","Control administrativo – Señalización de seguridad","Deberá mantener señalización de piso mojado cuando se ejecutan labores de limpieza normal"]
["C.03",3,"Espacios y superficies de trabajo","D.S. 47, OGUC","¿Las aberturas de pisos, costados abiertos de las escaleras, descansos, pasarelas, rampas, balcones, terrazas y ventanas, están provistos de barandas o antepechos con solidez suficiente para evitar la caída de personas u objetos?",null,"Protecciones","Caídas a un mismo nivel","Técnico/Ingeniería","Deberá implementar en las aberturas de pisos, costados abiertos de las escaleras, descansos, pasarelas, rampas, balcones, terrazas y ventanas, barandas o antepechos con solidez suficiente para evitar la caída de personas u objetos"]
["C.04",1,"Escaleras, rampas y Andenes","Ley 16.744","En el caso de efectuar sus actividades en andenes de carga, ¿están protegidos con barandas y rodapiés?",null,"Andenes de carga: protecciones","Caídas no especificados en otra parte","Técnico/Ingeniería","Debe proteger, en el andén de carga, la zona donde existe riesgo de caída de personas a más de 1,8 metros de altura, mediante la implementación de una baranda de 1 m. de alto. Adicionalmente, se recomienda implementar rodapiés para evitar la caída de materiales."]
["C.04",2,"Escaleras, rampas y Andenes","D.S. 47, OGUC","Los peldaños de las escaleras ¿tienen un ancho de huella no inferior a 0,28 m en proyección horizontal y una altura de contrahuella no mayor a 0,18 m ni menor a 0,13 m?",null,"Escalera Fija: Dimensiones","Otros tipos de accidentes potenciales no clasificados","Técnico/Ingeniería","Debe realizar las modificaciones necesarias para que los peldaños de la(s) escalera(s) cumplan con las dimensiones establecidas en la Ordenanza General de Construcción Asegurándose que estos cuenten con un ancho de huella no inferior a 0,28 m en proyección horizontal y una altura de contrahuella no mayor a 0,18 m ni menor a 0,13 m."]
["C.04",3,"Escaleras, rampas y Andenes","D.S. 47, OGUC","Las escaleras de peldaños y sus descansos ¿cuentan con pasamanos, ubicados a una altura entre 85 cm y 105 cm, medidos a partir cada peldaño o del descanso?",null,"Escalera fija: Pasamanos","Caídas no especificados en otra parte","Técnico/Ingeniería","Debe implementar pasamanos en la(s) escalera(s) y descansos (de preferencia en ambos costados), la altura de la ubicación del pasamanos en los tramos inclinados será entre 0,85 m y 1,05 m, medidos verticalmente a partir del peldaño, y en los descansos o vestíbulos será entre 0,95 m y 1,05 m. Aquellas Las escaleras de cuatro escalones o más o que se eleven a más de 0,76 m de altura deben tener, al menos, un pasamanos. El material y superficie de los pasamanos debe ser lisa, libre de astillas o bordes filosos que pudieran provocar punciones, laceraciones o que la ropa se enganche."]
["C.05",1,"Vías de evacuación","D.S. 594, Condiciones básicas en los CT","¿Verifica periódicamente que las salidas de emergencia se abren hacia el exterior del recinto, están despejadas y en perfecto estado de funcionamiento y sin llave, candado u otro medio que impida su fácil apertura?",null,"Salidas de emergencia","Otros tipos de accidentes potenciales no clasificados","Control administrativo – Otro (no especificado)","Debe verificar periódicamente que las salidas de emergencia funcionan correctamente, están libres de obstáculos, se abren en el sentido de la evacuación y permanecen sin llave, candado u otro medio que impida su fácil apertura. Se sugiere contar con un plan de verificación."]
["C.05",2,"Vías de evacuación","D.S. 594, Condiciones básicas en los CT","¿Verifica periódicamente que las vías de evacuación se encuentren despejadas y en perfecto estado (sin desniveles) que perturben el libre transito frente a una emergencia?",null,"Salidas de emergencia","Otros tipos de accidentes potenciales no clasificados","Control administrativo – Otro (no especificado)","Debe verificar periódicamente que las vías de evacuación están libres de obstáculos y en perfecto estado. Se sugiere contar con un plan de verificación."]
["C.05",3,"Vías de evacuación","D.S. 594, Condiciones básicas en los CT","¿Las vías de evacuación y salidas de evacuación están debidamente señalizadas y son fácilmente reconocibles?",null,"Evacuación: señalización","Otros tipos de accidentes potenciales no clasificados","Control administrativo – Otro (no especificado)","Toda vía de evacuación y salida de emergencia debe estar identificada mediante señales de seguridad. Deben contemplar las señales necesarias para facilitar la evacuación de los ocupantes hasta el exterior, minimizando cualquier posibilidad de confusión durante el recorrido de escape en situaciones de emergencia. Así mismo, las salida de emergencia deben ser fácilmente reconocibles como tales mediante señalización."]
["C.06",1,"Iluminación","D.S. 594, Condiciones básicas en los CT","¿El número de luminarias en el lugar de trabajo es suficiente ?",null,"Número de luminarias","Otros tipos de accidentes potenciales no clasificados","Control administrativo – Otro (no especificado)","Debe realizar una evaluación de los niveles de iluminación para determinar si la iluminación existente es adecuada para el trabajo que realiza."]
["C.06",2,"Iluminación","D.S. 594, Condiciones básicas en los CT","¿Los focos luminosos tienen elementos difusores de luz y/o protectores antideslumbrantes?",null,"Deslumbramientos: Difusores","Otros tipos de accidentes potenciales no clasificados","Control administrativo – Otro (no especificado)","Debe implementar un difusor en los focos luminosos, sobre todo en aquellos de alta luminancia, de forma que impidan el deslumbramiento."]
["C.07",1,"Señalización","D.S. 594, Condiciones básicas en los CT","¿Las vías de evacuación se encuentran señalizadas?",null,"Sin peligro especifico","Otros tipos de accidentes potenciales no clasificados","Control administrativo – Otro (no especificado)","Todo lugar de trabajo deberán contar con vías de evacuación horizontales y/o verticales que, además de cumplir con las exigencias de la Ordenanza General de Urbanismo y Construcción, dispongan de salidas en número, capacidad y ubicación y con la identificación apropiada para permitir la segura, rápida y expedita salida de todos sus ocupantes hacia zonas de seguridad."]
["C.07",2,"Señalización","D.S. 594, Condiciones básicas en los CT","¿Las zonas de peligro del lugar de trabajo se encuentran señalizadas?",null,"Sin peligro especifico","Otros tipos de accidentes potenciales no clasificados","Control administrativo – Otro (no especificado)","Debe contar con señalización visible y permanente en las zonas de peligro, indicando el agente y/o condición de riesgo, así como las vías de escape y zonas de seguridad ante emergencias."]
["C.08",1,"Condiciones de orden y aseo","D.S. 594, Condiciones básicas en los CT","Se realiza una limpieza periódica del recinto o lugar de trabajo.",null,"Limpieza de suelos","Caídas a un mismo nivel","Control administrativo – Otro (no especificado)","El tipo de trabajo que se realiza requiere una limpieza diaria. Téngalo en cuenta en la distribución de tareas diarias."]
["C.08",2,"Condiciones de orden y aseo","D.S. 594, Condiciones básicas en los CT","Las manchas de grasa, aceite u otras sustancias en torno a las máquinas son limpiadas periódicamente.",null,"Limpieza: grasas y aceites","Caídas a un mismo nivel","Control administrativo – Otro (no especificado)","Desarrolle e implemente un procedimiento de limpieza periódica del recinto, con tal de evitar la acumulación de residuos y/o desperdicios en el suelo, especialmente en aquellas zonas en las que, por uso de máquinas o herramientas de trabajo, pudieran acumularse en el suelo sustancias resbaladizas (grasas, aceites,...)."]